Workbook

Sheet Profit & Loss
A1: ='Data Sheet'!B1 -> ZENITH FIBRES LTD | H1: =UPDATE ->  | M1: SCREENER.IN
A3: Narration | B3: ='Data Sheet'!B16 -> 2007-03-31 | C3: ='Data Sheet'!C16 -> 2008-03-31 | D3: ='Data Sheet'!D16 -> 2009-03-31 | E3: ='Data Sheet'!E16 -> 2010-03-31 | F3: ='Data Sheet'!F16 -> 2011-03-31 | G3: ='Data Sheet'!G16 -> 2012-03-31 | H3: ='Data Sheet'!H16 -> 2013-03-31 | I3: ='Data Sheet'!I16 -> 2014-03-31 | J3: ='Data Sheet'!J16 -> 2015-03-31 | K3: ='Data Sheet'!K16 -> 2016-03-31 | L3: Trailing | M3: Best Case | N3: Worst Case
A4: Sales | B4: ='Data Sheet'!B17 -> 34.24 | C4: ='Data Sheet'!C17 -> 33.47 | D4: ='Data Sheet'!D17 -> 35.22 | E4: ='Data Sheet'!E17 -> 33.98 | F4: ='Data Sheet'!F17 -> 39.38 | G4: ='Data Sheet'!G17 -> 50.43 | H4: ='Data Sheet'!H17 -> 54.22 | I4: ='Data Sheet'!I17 -> 55.57 | J4: ='Data Sheet'!J17 -> 66.89 | K4: ='Data Sheet'!K17 -> 63.83 | L4: =SUM(Quarters!H4:K4) -> 57.69 | M4: =$K4+M23*K4 -> 67.39793982 | N4: =$K4+N23*L4 -> 61.19087009
A5: Expenses | B5: =SUM('Data Sheet'!B18,'Data Sheet'!B20:B24, -1*'Data Sheet'!B19) -> 29.7 | C5: =SUM('Data Sheet'!C18,'Data Sheet'!C20:C24, -1*'Data Sheet'!C19) -> 30.34 | D5: =SUM('Data Sheet'!D18,'Data Sheet'!D20:D24, -1*'Data Sheet'!D19) -> 30.74 | E5: =SUM('Data Sheet'!E18,'Data Sheet'!E20:E24, -1*'Data Sheet'!E19) -> 29.98 | F5: =SUM('Data Sheet'!F18,'Data Sheet'!F20:F24, -1*'Data Sheet'!F19) -> 35.68 | G5: =SUM('Data Sheet'!G18,'Data Sheet'!G20:G24, -1*'Data Sheet'!G19) -> 45.27 | H5: =SUM('Data Sheet'!H18,'Data Sheet'!H20:H24, -1*'Data Sheet'!H19) -> 48.49 | I5: =SUM('Data Sheet'!I18,'Data Sheet'!I20:I24, -1*'Data Sheet'!I19) -> 50.96 | J5: =SUM('Data Sheet'!J18,'Data Sheet'!J20:J24, -1*'Data Sheet'!J19) -> 59.9 | K5: =SUM('Data Sheet'!K18,'Data Sheet'!K20:K24, -1*'Data Sheet'!K19) -> 52.63 | L5: =SUM(Quarters!H5:K5) -> 47.41 | M5: =M4-M6 -> 55.38804519 | N5: 54.23866006
A6: Operating Profit | B6: =B4-B5 -> 4.54 | C6: =C4-C5 -> 3.13 | D6: 4.48 | E6: 4 | F6: 3.7 | G6: 5.16 | H6: 5.73 | I6: 4.61 | J6: 6.99 | K6: 11.2 | L6: =SUM(Quarters!H6:K6) -> 10.28 | M6: =M4*M24 -> 12.00989463 | N6: =N4*N24 -> 6.952210027
A7: Other Income | B7: ='Data Sheet'!B25 -> 0.52 | C7: ='Data Sheet'!C25 -> 0.62 | D7: ='Data Sheet'!D25 -> 0.81 | E7: ='Data Sheet'!E25 -> 0.98 | F7: ='Data Sheet'!F25 -> 1.1 | G7: ='Data Sheet'!G25 -> 1.36 | H7: ='Data Sheet'!H25 -> 1.75 | I7: ='Data Sheet'!I25 -> 1.91 | J7: ='Data Sheet'!J25 -> 2.95 | K7: ='Data Sheet'!K25 -> 2.96 | L7: =SUM(Quarters!H7:K7) -> 2.9 | M7: 0 | N7: 0
A8: Depreciation | B8: ='Data Sheet'!B26 -> 0.85 | C8: ='Data Sheet'!C26 -> 0.88 | D8: ='Data Sheet'!D26 -> 0.91 | E8: ='Data Sheet'!E26 -> 0.95 | F8: ='Data Sheet'!F26 -> 0.95 | G8: ='Data Sheet'!G26 -> 0.94 | H8: ='Data Sheet'!H26 -> 1.06 | I8: ='Data Sheet'!I26 -> 1.11 | J8: ='Data Sheet'!J26 -> 0.81 | K8: ='Data Sheet'!K26 -> 0.72 | L8: =SUM(Quarters!H8:K8) -> 0.68 | M8: =+$L8 -> 0.68 | N8: =+$L8 -> 0.68
A9: Interest | B9: ='Data Sheet'!B27 -> 0.12 | C9: ='Data Sheet'!C27 -> 0.11 | D9: ='Data Sheet'!D27 -> 0.15 | E9: ='Data Sheet'!E27 -> 0.16 | F9: ='Data Sheet'!F27 -> 0.14 | G9: ='Data Sheet'!G27 -> 0.16 | H9: ='Data Sheet'!H27 -> 0.2 | I9: ='Data Sheet'!I27 -> 0.23 | J9: ='Data Sheet'!J27 -> 0.27 | K9: ='Data Sheet'!K27 -> 0.27 | L9: =SUM(Quarters!H9:K9) -> 0.32 | M9: =+$L9 -> 0.32 | N9: =+$L9 -> 0.32
A10: Profit before tax | B10: ='Data Sheet'!B28 -> 4.09 | C10: ='Data Sheet'!C28 -> 2.76 | D10: ='Data Sheet'!D28 -> 4.23 | E10: ='Data Sheet'!E28 -> 3.87 | F10: ='Data Sheet'!F28 -> 3.71 | G10: ='Data Sheet'!G28 -> 5.42 | H10: ='Data Sheet'!H28 -> 6.21 | I10: ='Data Sheet'!I28 -> 5.17 | J10: ='Data Sheet'!J28 -> 8.87 | K10: ='Data Sheet'!K28 -> 13.17 | L10: =SUM(Quarters!H10:K10) -> 12.19 | M10: =M6+M7-SUM(M8:M9) -> 11.00989463 | N10: =N6+N7-SUM(N8:N9) -> 5.952210027
A11: Tax | B11: ='Data Sheet'!B29 -> 1.49 | C11: ='Data Sheet'!C29 -> 1.01 | D11: ='Data Sheet'!D29 -> 1.54 | E11: ='Data Sheet'!E29 -> 1.01 | F11: ='Data Sheet'!F29 -> 1.23 | G11: ='Data Sheet'!G29 -> 1.88 | H11: ='Data Sheet'!H29 -> 1.77 | I11: ='Data Sheet'!I29 -> 1.77 | J11: ='Data Sheet'!J29 -> 2.97 | K11: ='Data Sheet'!K29 -> 4.68 | L11: =SUM(Quarters!H11:K11) -> 4.42 | M11: =IF($L10>0,$L11/$L10,0) -> 0.3625922888 | N11: =IF($L10>0,$L11/$L10,0) -> 0.3625922888
A12: Net profit | B12: ='Data Sheet'!B30 -> 2.6 | C12: ='Data Sheet'!C30 -> 1.75 | D12: ='Data Sheet'!D30 -> 2.69 | E12: ='Data Sheet'!E30 -> 2.86 | F12: ='Data Sheet'!F30 -> 2.48 | G12: ='Data Sheet'!G30 -> 3.54 | H12: ='Data Sheet'!H30 -> 4.45 | I12: ='Data Sheet'!I30 -> 3.39 | J12: ='Data Sheet'!J30 -> 5.91 | K12: ='Data Sheet'!K30 -> 8.49 | L12: =SUM(Quarters!H12:K12) -> 7.77 | M12: =M10-M11*M10 -> 7.017791739 | N12: =N10-N11*N10 -> 3.79398457
A13: EPS | B13: =IF('Data Sheet'!B93>0,B12/'Data Sheet'!B93,0) -> 4.518181946 | C13: =IF('Data Sheet'!C93>0,C12/'Data Sheet'!C93,0) -> 3.041084002 | D13: =IF('Data Sheet'!D93>0,D12/'Data Sheet'!D93,0) -> 4.674580552 | E13: =IF('Data Sheet'!E93>0,E12/'Data Sheet'!E93,0) -> 4.970000141 | F13: =IF('Data Sheet'!F93>0,F12/'Data Sheet'!F93,0) -> 4.309650472 | G13: =IF('Data Sheet'!G93>0,G12/'Data Sheet'!G93,0) -> 6.151678496 | H13: =IF('Data Sheet'!H93>0,H12/'Data Sheet'!H93,0) -> 7.733042177 | I13: =IF('Data Sheet'!I93>0,I12/'Data Sheet'!I93,0) -> 5.891014153 | J13: =IF('Data Sheet'!J93>0,J12/'Data Sheet'!J93,0) -> 10.27017512 | K13: =IF('Data Sheet'!K93>0,K12/'Data Sheet'!K93,0) -> 19.19795511 | L13: =IF('Data Sheet'!$B6>0,'Profit & Loss'!L12/'Data Sheet'!$B6,0) -> 17.56878381 | M13: =IF('Data Sheet'!$B6>0,'Profit & Loss'!M12/'Data Sheet'!$B6,0) -> 15.86796214 | N13: =IF('Data Sheet'!$B6>0,'Profit & Loss'!N12/'Data Sheet'!$B6,0) -> 8.578596483
A14: Price to earning | B14: =IF(B15>0,B15/B13,"") -> 5.710261408 | C14: =IF(C15>0,C15/C13,"") -> 7.766967299 | D14: 3.814245963 | E14: 5.279677919 | F14: 6.102583069 | G14: 4.990507879 | H14: 4.189812917 | I14: 4.763186655 | J14: 5.879159734 | K14: 6.932509177 | L14: =IF(L13>0,L15/L13,0) -> 7.851994852 | M14: =M25 -> 7.851994852 | N14: =N25 -> 5.748679025
A15: Price | B15: ='Data Sheet'!B90 -> 25.8 | C15: ='Data Sheet'!C90 -> 23.62 | D15: ='Data Sheet'!D90 -> 17.83 | E15: ='Data Sheet'!E90 -> 26.24 | F15: ='Data Sheet'!F90 -> 26.3 | G15: ='Data Sheet'!G90 -> 30.7 | H15: ='Data Sheet'!H90 -> 32.4 | I15: ='Data Sheet'!I90 -> 28.06 | J15: ='Data Sheet'!J90 -> 60.38 | K15: ='Data Sheet'!K90 -> 133.09 | L15: ='Data Sheet'!B8 -> 137.95 | M15: =M13*M14 -> 124.5951571 | N15: =N13*N14 -> 49.31559767
A17: RATIOS:
A18: Dividend Payout | B18: =IF('Data Sheet'!B30>0, 'Data Sheet'!B31/'Data Sheet'!B30, 0) -> 0.2538461538 | C18: =IF('Data Sheet'!C30>0, 'Data Sheet'!C31/'Data Sheet'!C30, 0) -> 0.3828571429 | D18: =IF('Data Sheet'!D30>0, 'Data Sheet'!D31/'Data Sheet'!D30, 0) -> 0.2453531599 | E18: =IF('Data Sheet'!E30>0, 'Data Sheet'!E31/'Data Sheet'!E30, 0) -> 0.2307692308 | F18: =IF('Data Sheet'!F30>0, 'Data Sheet'!F31/'Data Sheet'!F30, 0) -> 0.2661290323 | G18: =IF('Data Sheet'!G30>0, 'Data Sheet'!G31/'Data Sheet'!G30, 0) -> 0.2514124294 | H18: =IF('Data Sheet'!H30>0, 'Data Sheet'!H31/'Data Sheet'!H30, 0) -> 0.197752809 | I18: =IF('Data Sheet'!I30>0, 'Data Sheet'!I31/'Data Sheet'!I30, 0) -> 0.1946902655 | J18: =IF('Data Sheet'!J30>0, 'Data Sheet'!J31/'Data Sheet'!J30, 0) -> 0.1878172589 | K18: =IF('Data Sheet'!K30>0, 'Data Sheet'!K31/'Data Sheet'!K30, 0) -> 0.1566548881
A19: OPM | B19: =IF(B6>0,B6/B4,0) -> 0.1325934579 | C19: =IF(C6>0,C6/C4,0) -> 0.09351658201 | D19: 0.1272004543 | E19: 0.1177163037 | F19: 0.09395632301 | G19: 0.1023200476 | H19: 0.1056805607 | I19: 0.08295843081 | J19: 0.1044999253 | K19: 0.1754660818 | L19: 0.1781937944
G22: TRENDS: | H22: 10 YEARS | I22: 7 YEARS | J22: 5 YEARS | K22: 3 YEARS | L22: RECENT | M22: BEST | N22: WORST
G23: Sales Growth | H23: =IF(B4=0,"",POWER($K4/B4,1/9)-1) -> 0.07165394092 | I23: =IF(D4=0,"",POWER($K4/D4,1/7)-1) -> 0.08865628629 | J23: =IF(F4=0,"",POWER($K4/F4,1/5)-1) -> 0.1014120575 | K23: =IF(H4=0,"",POWER($K4/H4, 1/3)-1) -> 0.05589753754 | L23: =IF(ISERROR(MAX(IF(J4=0,"",(K4-J4)/J4),IF(K4=0,"",(L4-K4)/K4))),"",MAX(IF(J4=0,"",(K4-J4)/J4),IF(K4=0,"",(L4-K4)/K4))) -> -0.04574674839 | M23: =MAX(K23:L23) -> 0.05589753754 | N23: =MIN(H23:L23) -> -0.04574674839
G24: OPM | H24: =IF(SUM(B4:$K$4)=0,"",SUMPRODUCT(B19:$K$19,B4:$K$4)/SUM(B4:$K$4)) -> 0.1145902446 | I24: =IF(SUM(E4:$K$4)=0,"",SUMPRODUCT(E19:$K$19,E4:$K$4)/SUM(E4:$K$4)) -> 0.1136151523 | J24: =IF(SUM(G4:$K$4)=0,"",SUMPRODUCT(G19:$K$19,G4:$K$4)/SUM(G4:$K$4)) -> 0.1157970716 | K24: =IF(SUM(I4:$K$4)=0, "", SUMPRODUCT(I19:$K$19,I4:$K$4)/SUM(I4:$K$4)) -> 0.1223898223 | L24: =L19 -> 0.1781937944 | M24: =MAX(K24:L24) -> 0.1781937944 | N24: =MIN(H24:L24) -> 0.1136151523
G25: Price to Earning | H25: =IF(ISERROR(AVERAGEIF(B14:$L14,">0")),"",AVERAGEIF(B14:$L14,">0")) -> 5.752809716 | I25: =IF(ISERROR(AVERAGEIF(E14:$L14,">0")),"",AVERAGEIF(E14:$L14,">0")) -> 5.748679025 | J25: =IF(ISERROR(AVERAGEIF(G14:$L14,">0")),"",AVERAGEIF(G14:$L14,">0")) -> 5.767861869 | K25: =IF(ISERROR(AVERAGEIF(I14:$L14,">0")),"",AVERAGEIF(I14:$L14,">0")) -> 6.356712605 | L25: =L14 -> 7.851994852 | M25: =MAX(K25:L25) -> 7.851994852 | N25: =MIN(H25:L25) -> 5.748679025

Sheet Quarters
A1: ='Profit & Loss'!A1 -> ZENITH FIBRES LTD | E1: =UPDATE ->  | J1: SCREENER.IN
A3: Narration | B3: ='Data Sheet'!B41 -> 2014-06-30 | C3: ='Data Sheet'!C41 -> 2014-09-30 | D3: ='Data Sheet'!D41 -> 2014-12-31 | E3: ='Data Sheet'!E41 -> 2015-03-31 | F3: ='Data Sheet'!F41 -> 2015-06-30 | G3: ='Data Sheet'!G41 -> 2015-09-30 | H3: ='Data Sheet'!H41 -> 2015-12-31 | I3: ='Data Sheet'!I41 -> 2016-03-31 | J3: ='Data Sheet'!J41 -> 2016-06-30 | K3: ='Data Sheet'!K41 -> 2016-09-30
A4: Sales | B4: ='Data Sheet'!B42 -> 16.18 | C4: ='Data Sheet'!C42 -> 17.26 | D4: ='Data Sheet'!D42 -> 16.87 | E4: ='Data Sheet'!E42 -> 16.59 | F4: ='Data Sheet'!F42 -> 14.53 | G4: ='Data Sheet'!G42 -> 18.45 | H4: ='Data Sheet'!H42 -> 12.92 | I4: ='Data Sheet'!I42 -> 17.93 | J4: ='Data Sheet'!J42 -> 16.23 | K4: ='Data Sheet'!K42 -> 10.61
A5: Expenses | B5: ='Data Sheet'!B43 -> 14.76 | C5: ='Data Sheet'!C43 -> 15.85 | D5: ='Data Sheet'!D43 -> 14.82 | E5: ='Data Sheet'!E43 -> 14.47 | F5: ='Data Sheet'!F43 -> 12.77 | G5: ='Data Sheet'!G43 -> 14.95 | H5: ='Data Sheet'!H43 -> 10.31 | I5: ='Data Sheet'!I43 -> 14.61 | J5: ='Data Sheet'!J43 -> 13.11 | K5: ='Data Sheet'!K43 -> 9.38
A6: Operating Profit | B6: ='Data Sheet'!B50 -> 1.42 | C6: ='Data Sheet'!C50 -> 1.41 | D6: ='Data Sheet'!D50 -> 2.05 | E6: ='Data Sheet'!E50 -> 2.12 | F6: ='Data Sheet'!F50 -> 1.76 | G6: ='Data Sheet'!G50 -> 3.5 | H6: ='Data Sheet'!H50 -> 2.61 | I6: ='Data Sheet'!I50 -> 3.32 | J6: ='Data Sheet'!J50 -> 3.12 | K6: ='Data Sheet'!K50 -> 1.23
A7: Other Income | B7: ='Data Sheet'!B44 -> 1.14 | C7: ='Data Sheet'!C44 -> 0.6 | D7: ='Data Sheet'!D44 -> 0.6 | E7: ='Data Sheet'!E44 -> 0.62 | F7: ='Data Sheet'!F44 -> 0.58 | G7: ='Data Sheet'!G44 -> 0.91 | H7: ='Data Sheet'!H44 -> 0.71 | I7: ='Data Sheet'!I44 -> 0.77 | J7: ='Data Sheet'!J44 -> 0.77 | K7: ='Data Sheet'!K44 -> 0.65
A8: Depreciation | B8: ='Data Sheet'!B45 -> 0.35 | C8: ='Data Sheet'!C45 -> 0.13 | D8: ='Data Sheet'!D45 -> 0.14 | E8: ='Data Sheet'!E45 -> 0.2 | F8: ='Data Sheet'!F45 -> 0.18 | G8: ='Data Sheet'!G45 -> 0.18 | H8: ='Data Sheet'!H45 -> 0.18 | I8: ='Data Sheet'!I45 -> 0.18 | J8: ='Data Sheet'!J45 -> 0.16 | K8: ='Data Sheet'!K45 -> 0.16
A9: Interest | B9: ='Data Sheet'!B46 -> 0.07 | C9: ='Data Sheet'!C46 -> 0.04 | D9: ='Data Sheet'!D46 -> 0.07 | E9: ='Data Sheet'!E46 -> 0.08 | F9: ='Data Sheet'!F46 -> 0.05 | G9: ='Data Sheet'!G46 -> 0.06 | H9: ='Data Sheet'!H46 -> 0.06 | I9: ='Data Sheet'!I46 -> 0.09 | J9: ='Data Sheet'!J46 -> 0.07 | K9: ='Data Sheet'!K46 -> 0.1
A10: Profit before tax | B10: ='Data Sheet'!B47 -> 2.15 | C10: ='Data Sheet'!C47 -> 1.83 | D10: ='Data Sheet'!D47 -> 2.43 | E10: ='Data Sheet'!E47 -> 2.45 | F10: ='Data Sheet'!F47 -> 2.11 | G10: ='Data Sheet'!G47 -> 4.16 | H10: ='Data Sheet'!H47 -> 3.08 | I10: ='Data Sheet'!I47 -> 3.82 | J10: ='Data Sheet'!J47 -> 3.66 | K10: ='Data Sheet'!K47 -> 1.63
A11: Tax | B11: ='Data Sheet'!B48 -> 0.7 | C11: ='Data Sheet'!C48 -> 0.65 | D11: ='Data Sheet'!D48 -> 0.79 | E11: ='Data Sheet'!E48 -> 0.78 | F11: ='Data Sheet'!F48 -> 0.73 | G11: ='Data Sheet'!G48 -> 1.4 | H11: ='Data Sheet'!H48 -> 1.2 | I11: ='Data Sheet'!I48 -> 1.35 | J11: ='Data Sheet'!J48 -> 1.32 | K11: ='Data Sheet'!K48 -> 0.55
A12: Net profit | B12: ='Data Sheet'!B49 -> 1.46 | C12: ='Data Sheet'!C49 -> 1.18 | D12: ='Data Sheet'!D49 -> 1.64 | E12: ='Data Sheet'!E49 -> 1.68 | F12: ='Data Sheet'!F49 -> 1.38 | G12: ='Data Sheet'!G49 -> 2.76 | H12: ='Data Sheet'!H49 -> 1.88 | I12: ='Data Sheet'!I49 -> 2.47 | J12: ='Data Sheet'!J49 -> 2.34 | K12: ='Data Sheet'!K49 -> 1.08
A14: OPM | B14: =IF(B4>0,B6/B4,"") -> 0.08776266996 | C14: =IF(C4>0,C6/C4,"") -> 0.08169177289 | D14: 0.1215174867 | E14: 0.127787824 | F14: 0.1211286992 | G14: 0.189701897 | H14: 0.2020123839 | I14: 0.1851645287 | J14: 0.1922365989 | K14: 0.1159283695

Sheet Balance Sheet
A1: ='Profit & Loss'!A1 -> ZENITH FIBRES LTD | E1: =UPDATE ->  | J1: SCREENER.IN
A3: Narration | B3: ='Data Sheet'!B56 -> 2007-03-31 | C3: ='Data Sheet'!C56 -> 2008-03-31 | D3: ='Data Sheet'!D56 -> 2009-03-31 | E3: ='Data Sheet'!E56 -> 2010-03-31 | F3: ='Data Sheet'!F56 -> 2011-03-31 | G3: ='Data Sheet'!G56 -> 2012-03-31 | H3: ='Data Sheet'!H56 -> 2013-03-31 | I3: ='Data Sheet'!I56 -> 2014-03-31 | J3: ='Data Sheet'!J56 -> 2015-03-31 | K3: ='Data Sheet'!K56 -> 2016-03-31
A4: Equity Share Capital | B4: ='Data Sheet'!B57 -> 5.09 | C4: ='Data Sheet'!C57 -> 5.09 | D4: ='Data Sheet'!D57 -> 5.09 | E4: ='Data Sheet'!E57 -> 5.09 | F4: ='Data Sheet'!F57 -> 5.09 | G4: ='Data Sheet'!G57 -> 5.09 | H4: ='Data Sheet'!H57 -> 5.09 | I4: ='Data Sheet'!I57 -> 5.09 | J4: ='Data Sheet'!J57 -> 5.09 | K4: ='Data Sheet'!K57 -> 4.42
A5: Reserves | B5: ='Data Sheet'!B58 -> 8.63 | C5: ='Data Sheet'!C58 -> 9.6 | D5: ='Data Sheet'!D58 -> 11.52 | E5: ='Data Sheet'!E58 -> 13.61 | F5: ='Data Sheet'!F58 -> 15.32 | G5: ='Data Sheet'!G58 -> 17.84 | H5: ='Data Sheet'!H58 -> 21.25 | I5: ='Data Sheet'!I58 -> 23.87 | J5: ='Data Sheet'!J58 -> 28.33 | K5: ='Data Sheet'!K58 -> 35.89
A6: Borrowings | B6: ='Data Sheet'!B59 -> 0.13 | C6: ='Data Sheet'!C59 -> 0.18 | D6: ='Data Sheet'!D59 -> 0.54 | E6: ='Data Sheet'!E59 -> 0.39 | F6: ='Data Sheet'!F59 -> 0.25 | G6: ='Data Sheet'!G59 -> 0.45 | H6: ='Data Sheet'!H59 -> 1.02 | I6: ='Data Sheet'!I59 -> 3.38 | J6: ='Data Sheet'!J59 -> 0.75 | K6: ='Data Sheet'!K59 -> 0.46
A7: Other Liabilities | B7: ='Data Sheet'!B60 -> 3.85 | C7: ='Data Sheet'!C60 -> 3.8 | D7: ='Data Sheet'!D60 -> 3.72 | E7: ='Data Sheet'!E60 -> 3.82 | F7: ='Data Sheet'!F60 -> 3.46 | G7: ='Data Sheet'!G60 -> 4.55 | H7: ='Data Sheet'!H60 -> 3.79 | I7: ='Data Sheet'!I60 -> 3.54 | J7: ='Data Sheet'!J60 -> 4.18 | K7: ='Data Sheet'!K60 -> 5.34
A8: Total | B8: ='Data Sheet'!B61 -> 17.7 | C8: ='Data Sheet'!C61 -> 18.67 | D8: ='Data Sheet'!D61 -> 20.87 | E8: ='Data Sheet'!E61 -> 22.91 | F8: ='Data Sheet'!F61 -> 24.12 | G8: ='Data Sheet'!G61 -> 27.93 | H8: ='Data Sheet'!H61 -> 31.15 | I8: ='Data Sheet'!I61 -> 35.88 | J8: ='Data Sheet'!J61 -> 38.35 | K8: ='Data Sheet'!K61 -> 46.11
A10: Net Block | B10: ='Data Sheet'!B62 -> 7.36 | C10: ='Data Sheet'!C62 -> 7.18 | D10: ='Data Sheet'!D62 -> 7.03 | E10: ='Data Sheet'!E62 -> 6.22 | F10: ='Data Sheet'!F62 -> 5.21 | G10: ='Data Sheet'!G62 -> 4.98 | H10: ='Data Sheet'!H62 -> 6.66 | I10: ='Data Sheet'!I62 -> 5.65 | J10: ='Data Sheet'!J62 -> 5.72 | K10: ='Data Sheet'!K62 -> 4.97
A11: Capital Work in Progress | B11: ='Data Sheet'!B63 -> 0.01 | C11: ='Data Sheet'!C63 -> 0 | D11: ='Data Sheet'!D63 -> 0 | E11: ='Data Sheet'!E63 -> 0 | F11: ='Data Sheet'!F63 -> 0.01 | G11: ='Data Sheet'!G63 -> 1.62 | H11: ='Data Sheet'!H63 -> 0 | I11: ='Data Sheet'!I63 -> 0 | J11: ='Data Sheet'!J63 -> 0 | K11: ='Data Sheet'!K63 -> 0
A12: Investments | B12: ='Data Sheet'!B64 -> 0 | C12: ='Data Sheet'!C64 -> 0 | D12: ='Data Sheet'!D64 -> 0 | E12: ='Data Sheet'!E64 -> 0 | F12: ='Data Sheet'!F64 -> 0 | G12: ='Data Sheet'!G64 -> 0 | H12: ='Data Sheet'!H64 -> 1 | I12: ='Data Sheet'!I64 -> 1 | J12: ='Data Sheet'!J64 -> 1 | K12: ='Data Sheet'!K64 -> 1.42
A13: Other Assets | B13: ='Data Sheet'!B65 -> 10.33 | C13: ='Data Sheet'!C65 -> 11.49 | D13: ='Data Sheet'!D65 -> 13.84 | E13: ='Data Sheet'!E65 -> 16.69 | F13: ='Data Sheet'!F65 -> 18.9 | G13: ='Data Sheet'!G65 -> 21.33 | H13: ='Data Sheet'!H65 -> 23.49 | I13: ='Data Sheet'!I65 -> 29.23 | J13: ='Data Sheet'!J65 -> 31.63 | K13: ='Data Sheet'!K65 -> 39.72
A14: Total | B14: ='Data Sheet'!B66 -> 17.7 | C14: ='Data Sheet'!C66 -> 18.67 | D14: ='Data Sheet'!D66 -> 20.87 | E14: ='Data Sheet'!E66 -> 22.91 | F14: ='Data Sheet'!F66 -> 24.12 | G14: ='Data Sheet'!G66 -> 27.93 | H14: ='Data Sheet'!H66 -> 31.15 | I14: ='Data Sheet'!I66 -> 35.88 | J14: ='Data Sheet'!J66 -> 38.35 | K14: ='Data Sheet'!K66 -> 46.11
A16: Working Capital | B16: =B13-B7 -> 6.48 | C16: =C13-C7 -> 7.69 | D16: 10.12 | E16: 12.87 | F16: 15.44 | G16: 16.78 | H16: 19.7 | I16: 25.69 | J16: 27.45 | K16: 34.38
A17: Debtors | B17: ='Data Sheet'!B67 -> 2.97 | C17: ='Data Sheet'!C67 -> 2.8 | D17: ='Data Sheet'!D67 -> 1.69 | E17: ='Data Sheet'!E67 -> 4.03 | F17: ='Data Sheet'!F67 -> 3.63 | G17: ='Data Sheet'!G67 -> 5.18 | H17: ='Data Sheet'!H67 -> 3.91 | I17: ='Data Sheet'!I67 -> 7.46 | J17: ='Data Sheet'!J67 -> 4.47 | K17: ='Data Sheet'!K67 -> 3.87
A18: Inventory | B18: ='Data Sheet'!B68 -> 2.41 | C18: ='Data Sheet'!C68 -> 2.61 | D18: ='Data Sheet'!D68 -> 3.6 | E18: ='Data Sheet'!E68 -> 2.66 | F18: ='Data Sheet'!F68 -> 3.29 | G18: ='Data Sheet'!G68 -> 2.94 | H18: ='Data Sheet'!H68 -> 4.47 | I18: ='Data Sheet'!I68 -> 5.06 | J18: ='Data Sheet'!J68 -> 4.85 | K18: ='Data Sheet'!K68 -> 4.56
A20: Inventory Turnover | B20: =IF('Balance Sheet'!B18>0,'Profit & Loss'!B4/'Balance Sheet'!B18,0) -> 14.20746888 | C20: =IF('Balance Sheet'!C18>0,'Profit & Loss'!C4/'Balance Sheet'!C18,0) -> 12.82375479 | D20: =IF('Balance Sheet'!D18>0,'Profit & Loss'!D4/'Balance Sheet'!D18,0) -> 9.783333333 | E20: =IF('Balance Sheet'!E18>0,'Profit & Loss'!E4/'Balance Sheet'!E18,0) -> 12.77443609 | F20: =IF('Balance Sheet'!F18>0,'Profit & Loss'!F4/'Balance Sheet'!F18,0) -> 11.96960486 | G20: =IF('Balance Sheet'!G18>0,'Profit & Loss'!G4/'Balance Sheet'!G18,0) -> 17.15306122 | H20: =IF('Balance Sheet'!H18>0,'Profit & Loss'!H4/'Balance Sheet'!H18,0) -> 12.12975391 | I20: =IF('Balance Sheet'!I18>0,'Profit & Loss'!I4/'Balance Sheet'!I18,0) -> 10.98221344 | J20: =IF('Balance Sheet'!J18>0,'Profit & Loss'!J4/'Balance Sheet'!J18,0) -> 13.79175258 | K20: =IF('Balance Sheet'!K18>0,'Profit & Loss'!K4/'Balance Sheet'!K18,0) -> 13.99780702
A21: Inventory Days | B21: =IF('Profit & Loss'!B4>0,'Balance Sheet'!B18/('Profit & Loss'!B4/365),0) -> 25.69071262 | C21: =IF('Profit & Loss'!C4>0,'Balance Sheet'!C18/('Profit & Loss'!C4/365),0) -> 28.46280251 | D21: =IF('Profit & Loss'!D4>0,'Balance Sheet'!D18/('Profit & Loss'!D4/365),0) -> 37.30834753 | E21: =IF('Profit & Loss'!E4>0,'Balance Sheet'!E18/('Profit & Loss'!E4/365),0) -> 28.57268982 | F21: =IF('Profit & Loss'!F4>0,'Balance Sheet'!F18/('Profit & Loss'!F4/365),0) -> 30.49390554 | G21: =IF('Profit & Loss'!G4>0,'Balance Sheet'!G18/('Profit & Loss'!G4/365),0) -> 21.27900059 | H21: =IF('Profit & Loss'!H4>0,'Balance Sheet'!H18/('Profit & Loss'!H4/365),0) -> 30.09129473 | I21: =IF('Profit & Loss'!I4>0,'Balance Sheet'!I18/('Profit & Loss'!I4/365),0) -> 33.23555875 | J21: =IF('Profit & Loss'!J4>0,'Balance Sheet'!J18/('Profit & Loss'!J4/365),0) -> 26.46509194 | K21: =IF('Profit & Loss'!K4>0,'Balance Sheet'!K18/('Profit & Loss'!K4/365),0) -> 26.07551308
A22: Debtor Days | B22: =IF('Profit & Loss'!B4>0,'Balance Sheet'!B17/('Profit & Loss'!B4/365),0) -> 31.66033879 | C22: =IF('Profit & Loss'!C4>0,'Balance Sheet'!C17/('Profit & Loss'!C4/365),0) -> 30.53480729 | D22: =IF('Profit & Loss'!D4>0,'Balance Sheet'!D17/('Profit & Loss'!D4/365),0) -> 17.51419648 | E22: =IF('Profit & Loss'!E4>0,'Balance Sheet'!E17/('Profit & Loss'!E4/365),0) -> 43.28869923 | F22: =IF('Profit & Loss'!F4>0,'Balance Sheet'!F17/('Profit & Loss'!F4/365),0) -> 33.6452514 | G22: =IF('Profit & Loss'!G4>0,'Balance Sheet'!G17/('Profit & Loss'!G4/365),0) -> 37.49157248 | H22: =IF('Profit & Loss'!H4>0,'Balance Sheet'!H17/('Profit & Loss'!H4/365),0) -> 26.32146809 | I22: =IF('Profit & Loss'!I4>0,'Balance Sheet'!I17/('Profit & Loss'!I4/365),0) -> 48.99946014 | J22: =IF('Profit & Loss'!J4>0,'Balance Sheet'!J17/('Profit & Loss'!J4/365),0) -> 24.39153835 | K22: =IF('Profit & Loss'!K4>0,'Balance Sheet'!K17/('Profit & Loss'!K4/365),0) -> 22.12987623
A23: Creditor Days
A24: Cash Conversion Cycle
A26: Return on Equity | B26: =IF(SUM('Balance Sheet'!B4:B5)>0,'Profit & Loss'!B12/SUM('Balance Sheet'!B4:B5),"") -> 0.1895043732 | C26: =IF(SUM('Balance Sheet'!C4:C5)>0,'Profit & Loss'!C12/SUM('Balance Sheet'!C4:C5),"") -> 0.119128659 | D26: =IF(SUM('Balance Sheet'!D4:D5)>0,'Profit & Loss'!D12/SUM('Balance Sheet'!D4:D5),"") -> 0.1619506321 | E26: =IF(SUM('Balance Sheet'!E4:E5)>0,'Profit & Loss'!E12/SUM('Balance Sheet'!E4:E5),"") -> 0.1529411765 | F26: =IF(SUM('Balance Sheet'!F4:F5)>0,'Profit & Loss'!F12/SUM('Balance Sheet'!F4:F5),"") -> 0.1215090642 | G26: =IF(SUM('Balance Sheet'!G4:G5)>0,'Profit & Loss'!G12/SUM('Balance Sheet'!G4:G5),"") -> 0.1543829045 | H26: =IF(SUM('Balance Sheet'!H4:H5)>0,'Profit & Loss'!H12/SUM('Balance Sheet'!H4:H5),"") -> 0.168944571 | I26: =IF(SUM('Balance Sheet'!I4:I5)>0,'Profit & Loss'!I12/SUM('Balance Sheet'!I4:I5),"") -> 0.117058011 | J26: =IF(SUM('Balance Sheet'!J4:J5)>0,'Profit & Loss'!J12/SUM('Balance Sheet'!J4:J5),"") -> 0.1768402154 | K26: =IF(SUM('Balance Sheet'!K4:K5)>0,'Profit & Loss'!K12/SUM('Balance Sheet'!K4:K5),"") -> 0.2106177127
A27: Return on Capital Emp | B27: =IF(('Balance Sheet'!B10+'Balance Sheet'!B16)>0,('Profit & Loss'!B6-'Profit & Loss'!B8-'Profit & Loss'!B11)/('Balance Sheet'!B10+'Balance Sheet'!B16),"") -> 0.1589595376 | C27: =IF(('Balance Sheet'!C10+'Balance Sheet'!C16)>0,('Profit & Loss'!C6-'Profit & Loss'!C8-'Profit & Loss'!C11)/('Balance Sheet'!C10+'Balance Sheet'!C16),"") -> 0.08338937458 | D27: =IF(('Balance Sheet'!D10+'Balance Sheet'!D16)>0,('Profit & Loss'!D6-'Profit & Loss'!D8-'Profit & Loss'!D11)/('Balance Sheet'!D10+'Balance Sheet'!D16),"") -> 0.1183673469 | E27: =IF(('Balance Sheet'!E10+'Balance Sheet'!E16)>0,('Profit & Loss'!E6-'Profit & Loss'!E8-'Profit & Loss'!E11)/('Balance Sheet'!E10+'Balance Sheet'!E16),"") -> 0.1068622315 | F27: =IF(('Balance Sheet'!F10+'Balance Sheet'!F16)>0,('Profit & Loss'!F6-'Profit & Loss'!F8-'Profit & Loss'!F11)/('Balance Sheet'!F10+'Balance Sheet'!F16),"") -> 0.07360774818 | G27: =IF(('Balance Sheet'!G10+'Balance Sheet'!G16)>0,('Profit & Loss'!G6-'Profit & Loss'!G8-'Profit & Loss'!G11)/('Balance Sheet'!G10+'Balance Sheet'!G16),"") -> 0.1075367647 | H27: =IF(('Balance Sheet'!H10+'Balance Sheet'!H16)>0,('Profit & Loss'!H6-'Profit & Loss'!H8-'Profit & Loss'!H11)/('Balance Sheet'!H10+'Balance Sheet'!H16),"") -> 0.1100151745 | I27: =IF(('Balance Sheet'!I10+'Balance Sheet'!I16)>0,('Profit & Loss'!I6-'Profit & Loss'!I8-'Profit & Loss'!I11)/('Balance Sheet'!I10+'Balance Sheet'!I16),"") -> 0.05520102106 | J27: =IF(('Balance Sheet'!J10+'Balance Sheet'!J16)>0,('Profit & Loss'!J6-'Profit & Loss'!J8-'Profit & Loss'!J11)/('Balance Sheet'!J10+'Balance Sheet'!J16),"") -> 0.09677419355 | K27: =IF(('Balance Sheet'!K10+'Balance Sheet'!K16)>0,('Profit & Loss'!K6-'Profit & Loss'!K8-'Profit & Loss'!K11)/('Balance Sheet'!K10+'Balance Sheet'!K16),"") -> 0.1473951715
A31: Common Size Balance Sheet | B31: =B3 -> 2007-03-31 | C31: =C3 -> 2008-03-31 | D31: 2009-03-31 | E31: 2010-03-31 | F31: 2011-03-31 | G31: 2012-03-31 | H31: 2013-03-31 | I31: 2014-03-31 | J31: 2015-03-31 | K31: 2016-03-31 | L31: Check back how Assets are being put to use
A32: Net Block/Total Assets | B32: =B10/B$8 -> 0.415819209 | C32: =C10/C$8 -> 0.3845741832 | D32: 0.336847149 | E32: 0.2714971628 | F32: 0.2160033167 | G32: 0.1783029001 | H32: 0.2138041734 | I32: 0.1574693423 | J32: 0.1491525424 | K32: 0.1077857298
A33: Working Capital/Total Assets | B33: =B16/B$8 -> 0.3661016949 | C33: =C16/C$8 -> 0.4118907338 | D33: 0.4849065644 | E33: 0.5617634221 | F33: 0.64013267 | G33: 0.6007876835 | H33: 0.632423756 | I33: 0.7159977703 | J33: 0.7157757497 | K33: 0.7456083279
A34: Debtors/Total Assets | B34: =B17/B$8 -> 0.1677966102 | C34: =C17/C$8 -> 0.1499732191 | D34: 0.08097747964 | E34: 0.175905718 | F34: 0.1504975124 | G34: 0.1854636591 | H34: 0.1255216693 | I34: 0.2079152731 | J34: 0.1165580183 | K34: 0.08392973325
A35: Inventory/Total Assets | B35: =B18/B$8 -> 0.1361581921 | C35: =C18/C$8 -> 0.1397964649 | D35: 0.1724964063 | E35: 0.1161065037 | F35: 0.1364013267 | G35: 0.1052631579 | H35: 0.1434991974 | I35: 0.141025641 | J35: 0.1264667536 | K35: 0.09889394925
A37: Borrowings/Total Assets | B37: =B6/B$8 -> 0.007344632768 | C37: =C6/C$8 -> 0.009641135512 | D37: 0.02587446095 | E37: 0.017023134 | F37: 0.01036484245 | G37: 0.01611170784 | H37: 0.03274478331 | I37: 0.09420289855 | J37: 0.01955671447 | K37: 0.009976144003

Sheet Cash Flow
A1: ='Balance Sheet'!A1 -> ZENITH FIBRES LTD | E1: =UPDATE ->  | J1: SCREENER.IN
A3: Narration | B3: ='Data Sheet'!B81 -> 2007-03-31 | C3: ='Data Sheet'!C81 -> 2008-03-31 | D3: ='Data Sheet'!D81 -> 2009-03-31 | E3: ='Data Sheet'!E81 -> 2010-03-31 | F3: ='Data Sheet'!F81 -> 2011-03-31 | G3: ='Data Sheet'!G81 -> 2012-03-31 | H3: ='Data Sheet'!H81 -> 2013-03-31 | I3: ='Data Sheet'!I81 -> 2014-03-31 | J3: ='Data Sheet'!J81 -> 2015-03-31 | K3: ='Data Sheet'!K81 -> 2016-03-31
A4: Cash from Operating Activity | B4: ='Data Sheet'!B82 -> 0.39 | C4: ='Data Sheet'!C82 -> 1.72 | D4: ='Data Sheet'!D82 -> 3.27 | E4: ='Data Sheet'!E82 -> 2.44 | F4: ='Data Sheet'!F82 -> 1.57 | G4: ='Data Sheet'!G82 -> 2.92 | H4: ='Data Sheet'!H82 -> 3.39 | I4: ='Data Sheet'!I82 -> -0.8 | J4: ='Data Sheet'!J82 -> 7.62 | K4: ='Data Sheet'!K82 -> 8.96
A5: Cash from Investing Activity | B5: ='Data Sheet'!B83 -> -0.23 | C5: ='Data Sheet'!C83 -> -0.26 | D5: ='Data Sheet'!D83 -> -0.42 | E5: ='Data Sheet'!E83 -> 0.59 | F5: ='Data Sheet'!F83 -> 0.61 | G5: ='Data Sheet'!G83 -> -1.39 | H5: ='Data Sheet'!H83 -> -0.81 | I5: ='Data Sheet'!I83 -> 1.21 | J5: ='Data Sheet'!J83 -> 0.78 | K5: ='Data Sheet'!K83 -> 1.54
A6: Cash from Financing Activity | B6: ='Data Sheet'!B84 -> -0.03 | C6: ='Data Sheet'!C84 -> -0.76 | D6: ='Data Sheet'!D84 -> -0.45 | E6: ='Data Sheet'!E84 -> -0.93 | F6: ='Data Sheet'!F84 -> -0.95 | G6: ='Data Sheet'!G84 -> -0.59 | H6: ='Data Sheet'!H84 -> -0.54 | I6: ='Data Sheet'!I84 -> 1.25 | J6: ='Data Sheet'!J84 -> -3.49 | K6: ='Data Sheet'!K84 -> -1.68
A7: Net Cash Flow | B7: ='Data Sheet'!B85 -> 0.13 | C7: ='Data Sheet'!C85 -> 0.7 | D7: ='Data Sheet'!D85 -> 2.4 | E7: ='Data Sheet'!E85 -> 2.1 | F7: ='Data Sheet'!F85 -> 1.23 | G7: ='Data Sheet'!G85 -> 0.94 | H7: ='Data Sheet'!H85 -> 2.04 | I7: ='Data Sheet'!I85 -> 1.66 | J7: ='Data Sheet'!J85 -> 4.91 | K7: ='Data Sheet'!K85 -> 8.82

Sheet Customization
A1: ='Data Sheet'!B1 -> ZENITH FIBRES LTD
B4: DELTA NETWORTH | C4: DELTA MKTCAP | D4: IMPACT* | F4: HISTORICAL VALUATIONS | M4: PRE-TAX BOND
A5: 10 YR | B5: ='Calculated Data'!K11-'Calculated Data'!B11 -> 26.59 | C5: ='Calculated Data'!K26-'Calculated Data'!B26 -> 44.01032325 | D5: =C5/B5 -> 1.655145666 | G5: P/E | H5: P/B | I5: EV/EBITDA | J5: P/SALES | K5: YIELD | M5: LongTerm Bond | N5: 0.09
A6: 7 YR | B6: ='Calculated Data'!K11-'Calculated Data'!E11 -> 21.61 | C6: ='Calculated Data'!K26-'Calculated Data'!E26 -> 43.75712407 | D6: =C6/B6 -> 2.024855348 | F6: MIN | G6: =MIN('Calculated Data'!B31:K31) -> 3.814245963 | H6: =MIN('Calculated Data'!B32:K32) -> 0.5575691561 | I6: =MIN('Calculated Data'!B35:K35) -> 0.8628575671 | J6: =MIN('Calculated Data'!B34:K34) -> 0.2905741004 | K6: =MAX('Calculated Data'!B36:K36) -> 0.06432546884 | M6: LTB Quote | N6: =('Profit & Loss'!$L$10/'Data Sheet'!$B$61)/N5 -> 7.6522285
A7: 5 YR | B7: ='Calculated Data'!K11-'Calculated Data'!G11 -> 17.38 | C7: ='Calculated Data'!K26-'Calculated Data'!G26 -> 41.19060502 | D7: =C7/B7 -> 2.370000289 | F7: MAX | G7: =MAX('Calculated Data'!B31:K31) -> 7.766967299 | H7: =MAX('Calculated Data'!B32:K32) -> 1.460109226 | I7: =MAX('Calculated Data'!B35:K35) -> 2.765918073 | J7: =MAX('Calculated Data'!B34:K34) -> 0.922089972 | K7: =MIN('Calculated Data'!B36:K36) -> 0.02259714111 | M7: Equity Quoting @ | N7: =('Profit & Loss'!$L$6/'Data Sheet'!$B$6)/'Data Sheet'!$B$8 -> 0.1684969677
A8: 3 YR | B8: ='Calculated Data'!K11-'Calculated Data'!I11 -> 11.35 | C8: ='Calculated Data'!K26-'Calculated Data'!I26 -> 42.70980015 | D8: =C8/B8 -> 3.762977987 | F8: TRAILING | G8: ='Data Sheet'!B8/'Profit & Loss'!L13 -> 7.851994852 | H8: ='Calculated Data'!L26/'Calculated Data'!K11 -> 1.513520218 | I8: ='Calculated Data'!K35 -> 2.237782692 | J8: ='Calculated Data'!L26/'Data Sheet'!K17 -> 0.9558201473 | K8: ='Data Sheet'!K31/'Calculated Data'!L26 -> 0.02179970497
A9: 1 YR | B9: ='Calculated Data'!K11-'Calculated Data'!J11 -> 6.89 | C9: ='Calculated Data'!K26-'Calculated Data'!J26 -> 24.11116889 | D9: =C9/B9 -> 3.499443961
A10: * IMPACT – Every Rupee retained added xx.yy in incremental market value
A12: =A1 -> ZENITH FIBRES LTD | B12: SALES | C12: GROSS PROFIT | D12: EBIT | E12: PAT | F12: DIVIDEND | G12: EPA** | H12: MKTCAP | I12: CFO** | J12: FCF** | K12: NETWORTH | L12: TOTAL RETURNS
A13: 10 YR CAGR | B13: =POWER('Data Sheet'!$K17/'Data Sheet'!$B17, 1/9)-1 -> 0.07165394092 | C13: =POWER('Calculated Data'!$K4/'Calculated Data'!$B4, 1/9)-1 -> 0.07839279277 | D13: =POWER('Calculated Data'!$K5/'Calculated Data'!$B5, 1/9)-1 -> 0.1376613899 | E13: =POWER('Calculated Data'!$K8/'Calculated Data'!$B8, 1/9)-1 -> 0.1405223908 | F13: =POWER('Calculated Data'!$K9/'Calculated Data'!$B9, 1/9)-1 -> 0.08096583353 | G13: =POWER('Calculated Data'!$K24/'Calculated Data'!$B24, 1/9)-1 -> 0.1628053619 | H13: =POWER('Calculated Data'!$K26/'Calculated Data'!$B26, 1/9)-1 -> 0.1653683006 | I13: =POWER('Calculated Data'!$K17/'Calculated Data'!$B17, 1/9)-1 -> 0.4166066199 | J13: =POWER('Calculated Data'!$K19/'Calculated Data'!$C19, 1/8)-1 -> 0.3110380864 | K13: =POWER('Calculated Data'!$K11/'Calculated Data'!$B11, 1/9)-1 -> 0.1272143807 | L13: =POWER('Calculated Data'!$K27/'Calculated Data'!$B27, 1/9)-1 -> 0.162633027
A14: 5 YR CAGR | B14: =POWER('Data Sheet'!$K17/'Data Sheet'!$G17, 1/4)-1 -> 0.06067899651 | C14: =POWER('Calculated Data'!$K4/'Calculated Data'!$G4, 1/4)-1 -> 0.07748837815 | D14: =POWER('Calculated Data'!$K5/'Calculated Data'!$G5, 1/4)-1 -> 0.2457797507 | E14: =POWER('Calculated Data'!$K8/'Calculated Data'!$G8, 1/4)-1 -> 0.244446146 | F14: =POWER('Calculated Data'!$K9/'Calculated Data'!$G9, 1/4)-1 -> 0.1056442421 | G14: =POWER('Calculated Data'!$K24/'Calculated Data'!$G24, 1/4)-1 -> 0.4723222435 | H14: =POWER('Calculated Data'!$K26/'Calculated Data'!$G26, 1/4)-1 -> 0.351022351 | I14: =POWER('Calculated Data'!$K17/'Calculated Data'!$G17, 1/4)-1 -> 0.3235223806 | J14: =POWER('Calculated Data'!$K19/'Calculated Data'!$G19, 1/4)-1 -> 0.9674427795 | K14: =POWER('Calculated Data'!$K11/'Calculated Data'!$G11, 1/4)-1 -> 0.1514688291 | L14: =POWER('Calculated Data'!$K27/'Calculated Data'!$G27, 1/4)-1 -> 0.3419992106
A15: 3 YR CAGR | B15: =POWER('Data Sheet'!$K17/'Data Sheet'!$I17, 1/2)-1 -> 0.07174686995 | C15: =POWER('Calculated Data'!$K4/'Calculated Data'!$I4, 1/2)-1 -> 0.1953033088 | D15: =POWER('Calculated Data'!$K5/'Calculated Data'!$I5, 1/2)-1 -> 0.5776212755 | E15: =POWER('Calculated Data'!$K8/'Calculated Data'!$I8, 1/2)-1 -> 0.5825374494 | F15: =POWER('Calculated Data'!$K9/'Calculated Data'!$I9, 1/2)-1 -> 0.4195603246 | G15: =POWER('Calculated Data'!$K24/'Calculated Data'!$I24, 1/2)-1 ->  | H15: =POWER('Calculated Data'!$K26/'Calculated Data'!$I26, 1/2)-1 -> 0.909195589 | I15: =POWER('Calculated Data'!$K17/'Calculated Data'!$I17, 1/2)-1 ->  | J15: =POWER('Calculated Data'!$K19/'Calculated Data'!$I19, 1/2)-1 ->  | K15: =POWER('Calculated Data'!$K11/'Calculated Data'!$I11, 1/2)-1 -> 0.1797965458 | L15: =POWER('Calculated Data'!$K27/'Calculated Data'!$I27, 1/2)-1 -> 0.8923594753
A16: 1 YR GROWTH | B16: =('Data Sheet'!$K17-'Data Sheet'!$J17)/'Data Sheet'!$J17 -> -0.04574674839 | C16: =('Calculated Data'!$K4-'Calculated Data'!$J4)/'Calculated Data'!$J4 -> 0.2277121375 | D16: =('Calculated Data'!$K5-'Calculated Data'!$J5)/'Calculated Data'!$J5 -> 0.4704595186 | E16: =('Calculated Data'!$K8-'Calculated Data'!$J8)/'Calculated Data'!$J8 -> 0.4365482234 | F16: =('Calculated Data'!$K9-'Calculated Data'!$J9)/'Calculated Data'!$J9 -> 0.1981981982 | G16: =('Calculated Data'!$K24-'Calculated Data'!$J24)/'Calculated Data'!$J24 -> 0.8778895192 | H16: =('Calculated Data'!$K26-'Calculated Data'!$J26)/'Calculated Data'!$J26 -> 0.6939297779 | I16: =('Calculated Data'!$K17-'Calculated Data'!$J17)/'Calculated Data'!$J17 -> 0.1758530184 | J16: =('Calculated Data'!$K19-'Calculated Data'!$J19)/'Calculated Data'!$J19 -> 0.3338278932 | K16: =('Calculated Data'!$K11-'Calculated Data'!$J11)/'Calculated Data'!$J11 -> 0.2061639737 | L16: =('Calculated Data'!$K27-'Calculated Data'!$J27)/'Calculated Data'!$J27 -> 0.678583264
A17: **modify (if, then) for negative values
A18: =A1 -> ZENITH FIBRES LTD | B18: ='Data Sheet'!B16 -> 2007-03-31 | C18: ='Data Sheet'!C16 -> 2008-03-31 | D18: ='Data Sheet'!D16 -> 2009-03-31 | E18: ='Data Sheet'!E16 -> 2010-03-31 | F18: ='Data Sheet'!F16 -> 2011-03-31 | G18: ='Data Sheet'!G16 -> 2012-03-31 | H18: ='Data Sheet'!H16 -> 2013-03-31 | I18: ='Data Sheet'!I16 -> 2014-03-31 | J18: ='Data Sheet'!J16 -> 2015-03-31 | K18: ='Data Sheet'!K16 -> 2016-03-31
A19: Total Assets/Networth= Financial Leverage | B19: ='Calculated Data'!B15/'Calculated Data'!B11 -> 1.290087464 | C19: ='Calculated Data'!C15/'Calculated Data'!C11 -> 1.270932607 | D19: ='Calculated Data'!D15/'Calculated Data'!D11 -> 1.256472005 | E19: ='Calculated Data'!E15/'Calculated Data'!E11 -> 1.22513369 | F19: ='Calculated Data'!F15/'Calculated Data'!F11 -> 1.18177364 | G19: ='Calculated Data'!G15/'Calculated Data'!G11 -> 1.21805495 | H19: ='Calculated Data'!H15/'Calculated Data'!H11 -> 1.182611997 | I19: ='Calculated Data'!I15/'Calculated Data'!I11 -> 1.238950276 | J19: ='Calculated Data'!J15/'Calculated Data'!J11 -> 1.147516457 | K19: ='Calculated Data'!K15/'Calculated Data'!K11 -> 1.143884892
A20: Long term debt/Earning | B20: ='Data Sheet'!B59/'Data Sheet'!B30 -> 0.05 | C20: ='Data Sheet'!C59/'Data Sheet'!C30 -> 0.1028571429 | D20: ='Data Sheet'!D59/'Data Sheet'!D30 -> 0.2007434944 | E20: ='Data Sheet'!E59/'Data Sheet'!E30 -> 0.1363636364 | F20: ='Data Sheet'!F59/'Data Sheet'!F30 -> 0.1008064516 | G20: ='Data Sheet'!G59/'Data Sheet'!G30 -> 0.1271186441 | H20: ='Data Sheet'!H59/'Data Sheet'!H30 -> 0.2292134831 | I20: ='Data Sheet'!I59/'Data Sheet'!I30 -> 0.9970501475 | J20: ='Data Sheet'!J59/'Data Sheet'!J30 -> 0.1269035533 | K20: ='Data Sheet'!K59/'Data Sheet'!K30 -> 0.05418138987
A21: Current liablility/Earning | B21: ='Data Sheet'!B60/'Data Sheet'!B30 -> 1.480769231 | C21: ='Data Sheet'!C60/'Data Sheet'!C30 -> 2.171428571 | D21: ='Data Sheet'!D60/'Data Sheet'!D30 -> 1.382899628 | E21: ='Data Sheet'!E60/'Data Sheet'!E30 -> 1.335664336 | F21: ='Data Sheet'!F60/'Data Sheet'!F30 -> 1.39516129 | G21: ='Data Sheet'!G60/'Data Sheet'!G30 -> 1.285310734 | H21: ='Data Sheet'!H60/'Data Sheet'!H30 -> 0.8516853933 | I21: ='Data Sheet'!I60/'Data Sheet'!I30 -> 1.044247788 | J21: ='Data Sheet'!J60/'Data Sheet'!J30 -> 0.7072758037 | K21: ='Data Sheet'!K60/'Data Sheet'!K30 -> 0.628975265
A22: Total liability/Earning | B22: =('Data Sheet'!B59+'Data Sheet'!B60)/'Data Sheet'!B30 -> 1.530769231 | C22: =('Data Sheet'!C59+'Data Sheet'!C60)/'Data Sheet'!C30 -> 2.274285714 | D22: =('Data Sheet'!D59+'Data Sheet'!D60)/'Data Sheet'!D30 -> 1.583643123 | E22: =('Data Sheet'!E59+'Data Sheet'!E60)/'Data Sheet'!E30 -> 1.472027972 | F22: =('Data Sheet'!F59+'Data Sheet'!F60)/'Data Sheet'!F30 -> 1.495967742 | G22: =('Data Sheet'!G59+'Data Sheet'!G60)/'Data Sheet'!G30 -> 1.412429379 | H22: =('Data Sheet'!H59+'Data Sheet'!H60)/'Data Sheet'!H30 -> 1.080898876 | I22: =('Data Sheet'!I59+'Data Sheet'!I60)/'Data Sheet'!I30 -> 2.041297935 | J22: =('Data Sheet'!J59+'Data Sheet'!J60)/'Data Sheet'!J30 -> 0.834179357 | K22: =('Data Sheet'!K59+'Data Sheet'!K60)/'Data Sheet'!K30 -> 0.6831566549
A23: Debt/Equity | B23: ='Data Sheet'!B59/'Calculated Data'!B11 -> 0.009475218659 | C23: ='Data Sheet'!C59/'Calculated Data'!C11 -> 0.01225323349 | D23: ='Data Sheet'!D59/'Calculated Data'!D11 -> 0.03251053582 | E23: ='Data Sheet'!E59/'Calculated Data'!E11 -> 0.02085561497 | F23: ='Data Sheet'!F59/'Calculated Data'!F11 -> 0.0122488976 | G23: ='Data Sheet'!G59/'Calculated Data'!G11 -> 0.01962494549 | H23: ='Data Sheet'!H59/'Calculated Data'!H11 -> 0.03872437358 | I23: ='Data Sheet'!I59/'Calculated Data'!I11 -> 0.1167127072 | J23: ='Data Sheet'!J59/'Calculated Data'!J11 -> 0.02244165171 | K23: ='Data Sheet'!K59/'Calculated Data'!K11 -> 0.01141156041
A24: Interest Coverage | B24: ='Calculated Data'!B5/'Data Sheet'!B27 -> 35.08333333 | C24: ='Calculated Data'!C5/'Data Sheet'!C27 -> 26.09090909 | D24: ='Calculated Data'!D5/'Data Sheet'!D27 -> 29.2 | E24: ='Calculated Data'!E5/'Data Sheet'!E27 -> 25.1875 | F24: ='Calculated Data'!F5/'Data Sheet'!F27 -> 27.5 | G24: ='Calculated Data'!G5/'Data Sheet'!G27 -> 34.875 | H24: ='Calculated Data'!H5/'Data Sheet'!H27 -> 32.05 | I24: ='Calculated Data'!I5/'Data Sheet'!I27 -> 23.47826087 | J24: ='Calculated Data'!J5/'Data Sheet'!J27 -> 33.85185185 | K24: ='Calculated Data'!K5/'Data Sheet'!K27 -> 49.77777778
A25: Working Capital/Sales | B25: ='Calculated Data'!B12/'Data Sheet'!B17 -> 0.1892523364 | C25: ='Calculated Data'!C12/'Data Sheet'!C17 -> 0.2297579922 | D25: ='Calculated Data'!D12/'Data Sheet'!D17 -> 0.2873367405 | E25: ='Calculated Data'!E12/'Data Sheet'!E17 -> 0.3787522072 | F25: ='Calculated Data'!F12/'Data Sheet'!F17 -> 0.3920771965 | G25: ='Calculated Data'!G12/'Data Sheet'!G17 -> 0.3327384493 | H25: ='Calculated Data'!H12/'Data Sheet'!H17 -> 0.3633345629 | I25: ='Calculated Data'!I12/'Data Sheet'!I17 -> 0.4622998021 | J25: ='Calculated Data'!J12/'Data Sheet'!J17 -> 0.4103752429 | K25: ='Calculated Data'!K12/'Data Sheet'!K17 -> 0.5386182046 | L25: Check for improving or deteriorating picture
A26: Inventory Turns | B26: =365/B27 -> 14.20746888 | C26: 12.82375479 | D26: 9.783333333 | E26: 12.77443609 | F26: 11.96960486 | G26: 17.15306122 | H26: 12.12975391 | I26: 10.98221344 | J26: 13.79175258 | K26: 13.99780702
A27: Inventory Days | B27: ='Balance Sheet'!B21 -> 25.69071262 | C27: ='Balance Sheet'!C21 -> 28.46280251 | D27: ='Balance Sheet'!D21 -> 37.30834753 | E27: ='Balance Sheet'!E21 -> 28.57268982 | F27: ='Balance Sheet'!F21 -> 30.49390554 | G27: ='Balance Sheet'!G21 -> 21.27900059 | H27: ='Balance Sheet'!H21 -> 30.09129473 | I27: ='Balance Sheet'!I21 -> 33.23555875 | J27: ='Balance Sheet'!J21 -> 26.46509194 | K27: ='Balance Sheet'!K21 -> 26.07551308
A28: Debtor Days | B28: ='Balance Sheet'!B22 -> 31.66033879 | C28: ='Balance Sheet'!C22 -> 30.53480729 | D28: ='Balance Sheet'!D22 -> 17.51419648 | E28: ='Balance Sheet'!E22 -> 43.28869923 | F28: ='Balance Sheet'!F22 -> 33.6452514 | G28: ='Balance Sheet'!G22 -> 37.49157248 | H28: ='Balance Sheet'!H22 -> 26.32146809 | I28: ='Balance Sheet'!I22 -> 48.99946014 | J28: ='Balance Sheet'!J22 -> 24.39153835 | K28: ='Balance Sheet'!K22 -> 22.12987623
A29: Creditor Days | L29: Check back to see if Creditor policy change is impacting Working Cap cycle
A30: Cash Conversion Cycle
A31: Cash In/Cash Out Ratio | B31: =('Data Sheet'!B67+'Data Sheet'!B69)/'Data Sheet'!B60 -> 1.47012987 | C31: =('Data Sheet'!C67+'Data Sheet'!C69)/'Data Sheet'!C60 -> 1.631578947 | D31: =('Data Sheet'!D67+'Data Sheet'!D69)/'Data Sheet'!D60 -> 2.010752688 | E31: =('Data Sheet'!E67+'Data Sheet'!E69)/'Data Sheet'!E60 -> 3.120418848 | F31: =('Data Sheet'!F67+'Data Sheet'!F69)/'Data Sheet'!F60 -> 3.684971098 | G31: =('Data Sheet'!G67+'Data Sheet'!G69)/'Data Sheet'!G60 -> 3.382417582 | H31: =('Data Sheet'!H67+'Data Sheet'!H69)/'Data Sheet'!H60 -> 4.263852243 | I31: =('Data Sheet'!I67+'Data Sheet'!I69)/'Data Sheet'!I60 -> 6.036723164 | J31: =('Data Sheet'!J67+'Data Sheet'!J69)/'Data Sheet'!J60 -> 5.571770335 | K31: =('Data Sheet'!K67+'Data Sheet'!K69)/'Data Sheet'!K60 -> 5.898876404
A32: Current Ratio | B32: ='Data Sheet'!B65/'Data Sheet'!B60 -> 2.683116883 | C32: ='Data Sheet'!C65/'Data Sheet'!C60 -> 3.023684211 | D32: ='Data Sheet'!D65/'Data Sheet'!D60 -> 3.720430108 | E32: ='Data Sheet'!E65/'Data Sheet'!E60 -> 4.369109948 | F32: ='Data Sheet'!F65/'Data Sheet'!F60 -> 5.462427746 | G32: ='Data Sheet'!G65/'Data Sheet'!G60 -> 4.687912088 | H32: ='Data Sheet'!H65/'Data Sheet'!H60 -> 6.197889182 | I32: ='Data Sheet'!I65/'Data Sheet'!I60 -> 8.257062147 | J32: ='Data Sheet'!J65/'Data Sheet'!J60 -> 7.566985646 | K32: ='Data Sheet'!K65/'Data Sheet'!K60 -> 7.438202247
A33: CFO/PAT | B33: ='Calculated Data'!B17/'Calculated Data'!B8 -> 0.15 | C33: ='Calculated Data'!C17/'Calculated Data'!C8 -> 0.9828571429 | D33: ='Calculated Data'!D17/'Calculated Data'!D8 -> 1.215613383 | E33: ='Calculated Data'!E17/'Calculated Data'!E8 -> 0.8531468531 | F33: ='Calculated Data'!F17/'Calculated Data'!F8 -> 0.6330645161 | G33: ='Calculated Data'!G17/'Calculated Data'!G8 -> 0.8248587571 | H33: ='Calculated Data'!H17/'Calculated Data'!H8 -> 0.7617977528 | I33: ='Calculated Data'!I17/'Calculated Data'!I8 -> -0.2359882006 | J33: ='Calculated Data'!J17/'Calculated Data'!J8 -> 1.289340102 | K33: ='Calculated Data'!K17/'Calculated Data'!K8 -> 1.055359246
A35: Gross Margin =Gross Profit/Sales | B35: ='Calculated Data'!B4/'Data Sheet'!B17 -> 0.3384929907 | C35: ='Calculated Data'!C4/'Data Sheet'!C17 -> 0.3349268001 | D35: ='Calculated Data'!D4/'Data Sheet'!D17 -> 0.3245315162 | E35: ='Calculated Data'!E4/'Data Sheet'!E17 -> 0.3649205415 | F35: ='Calculated Data'!F4/'Data Sheet'!F17 -> 0.3042153377 | G35: ='Calculated Data'!G4/'Data Sheet'!G17 -> 0.3363077533 | H35: ='Calculated Data'!H4/'Data Sheet'!H17 -> 0.2901143489 | I35: ='Calculated Data'!I4/'Data Sheet'!I17 -> 0.2879251395 | J35: ='Calculated Data'!J4/'Data Sheet'!J17 -> 0.278367469 | K35: ='Calculated Data'!K4/'Data Sheet'!K17 -> 0.3581388062
A36: EBIT/Sales | B36: ='Calculated Data'!B5/'Data Sheet'!B17 -> 0.1229556075 | C36: ='Calculated Data'!C5/'Data Sheet'!C17 -> 0.08574843143 | D36: ='Calculated Data'!D5/'Data Sheet'!D17 -> 0.1243611584 | E36: ='Calculated Data'!E5/'Data Sheet'!E17 -> 0.118599176 | F36: ='Calculated Data'!F5/'Data Sheet'!F17 -> 0.09776536313 | G36: ='Calculated Data'!G5/'Data Sheet'!G17 -> 0.1106484236 | H36: ='Calculated Data'!H5/'Data Sheet'!H17 -> 0.1182220583 | I36: ='Calculated Data'!I5/'Data Sheet'!I17 -> 0.09717473457 | J36: ='Calculated Data'!J5/'Data Sheet'!J17 -> 0.1366422485 | K36: ='Calculated Data'!K5/'Data Sheet'!K17 -> 0.2105592981
A37: EBITDA/Sales | B37: ='Calculated Data'!B6/'Data Sheet'!B17 -> 0.1477803738 | C37: ='Calculated Data'!C6/'Data Sheet'!C17 -> 0.1120406334 | D37: ='Calculated Data'!D6/'Data Sheet'!D17 -> 0.1501987507 | E37: ='Calculated Data'!E6/'Data Sheet'!E17 -> 0.1465567981 | F37: ='Calculated Data'!F6/'Data Sheet'!F17 -> 0.1218892839 | G37: ='Calculated Data'!G6/'Data Sheet'!G17 -> 0.1292881221 | H37: ='Calculated Data'!H6/'Data Sheet'!H17 -> 0.1377720398 | I37: ='Calculated Data'!I6/'Data Sheet'!I17 -> 0.1171495411 | J37: ='Calculated Data'!J6/'Data Sheet'!J17 -> 0.1487516819 | K37: ='Calculated Data'!K6/'Data Sheet'!K17 -> 0.2218392605
A38: Op Profit (Ex Other Income)/Sales | B38: ='Calculated Data'!B7/'Data Sheet'!B17 -> 0.1325934579 | C38: ='Calculated Data'!C7/'Data Sheet'!C17 -> 0.09351658201 | D38: ='Calculated Data'!D7/'Data Sheet'!D17 -> 0.1272004543 | E38: ='Calculated Data'!E7/'Data Sheet'!E17 -> 0.1177163037 | F38: ='Calculated Data'!F7/'Data Sheet'!F17 -> 0.09395632301 | G38: ='Calculated Data'!G7/'Data Sheet'!G17 -> 0.1023200476 | H38: ='Calculated Data'!H7/'Data Sheet'!H17 -> 0.1054961269 | I38: ='Calculated Data'!I7/'Data Sheet'!I17 -> 0.0827784776 | J38: ='Calculated Data'!J7/'Data Sheet'!J17 -> 0.1046494244 | K38: ='Calculated Data'!K7/'Data Sheet'!K17 -> 0.1754660818
A39: Net Margin =PAT/Sales | B39: ='Calculated Data'!B8/'Data Sheet'!B17 -> 0.07593457944 | C39: ='Calculated Data'!C8/'Data Sheet'!C17 -> 0.05228562892 | D39: ='Calculated Data'!D8/'Data Sheet'!D17 -> 0.07637705849 | E39: ='Calculated Data'!E8/'Data Sheet'!E17 -> 0.08416715715 | F39: ='Calculated Data'!F8/'Data Sheet'!F17 -> 0.06297613002 | G39: ='Calculated Data'!G8/'Data Sheet'!G17 -> 0.07019631172 | H39: ='Calculated Data'!H8/'Data Sheet'!H17 -> 0.08207303578 | I39: ='Calculated Data'!I8/'Data Sheet'!I17 -> 0.06100413892 | J39: ='Calculated Data'!J8/'Data Sheet'!J17 -> 0.08835401405 | K39: ='Calculated Data'!K8/'Data Sheet'!K17 -> 0.1330095566
A40: Op Cash Flow/Sales | B40: ='Calculated Data'!B17/'Data Sheet'!B17 -> 0.01139018692 | C40: ='Calculated Data'!C17/'Data Sheet'!C17 -> 0.05138930385 | D40: ='Calculated Data'!D17/'Data Sheet'!D17 -> 0.09284497445 | E40: ='Calculated Data'!E17/'Data Sheet'!E17 -> 0.07180694526 | F40: ='Calculated Data'!F17/'Data Sheet'!F17 -> 0.03986795328 | G40: ='Calculated Data'!G17/'Data Sheet'!G17 -> 0.05790204244 | H40: ='Calculated Data'!H17/'Data Sheet'!H17 -> 0.06252305422 | I40: ='Calculated Data'!I17/'Data Sheet'!I17 -> -0.01439625697 | J40: ='Calculated Data'!J17/'Data Sheet'!J17 -> 0.1139183734 | K40: ='Calculated Data'!K17/'Data Sheet'!K17 -> 0.1403728654
A41: Free Cash Flow/Sales | B41: ='Calculated Data'!B19/'Data Sheet'!B17 -> 0 | C41: ='Calculated Data'!C19/'Data Sheet'!C17 -> 0.03077382731 | D41: ='Calculated Data'!D19/'Data Sheet'!D17 -> 0.07126632595 | E41: ='Calculated Data'!E19/'Data Sheet'!E17 -> 0.06768687463 | F41: ='Calculated Data'!F19/'Data Sheet'!F17 -> 0.04113763332 | G41: ='Calculated Data'!G19/'Data Sheet'!G17 -> 0.01189767995 | H41: ='Calculated Data'!H19/'Data Sheet'!H17 -> 0.04186646994 | I41: ='Calculated Data'!I19/'Data Sheet'!I17 -> -0.01619578909 | J41: ='Calculated Data'!J19/'Data Sheet'!J17 -> 0.1007624458 | K41: ='Calculated Data'!K19/'Data Sheet'!K17 -> 0.1408428639
A42: EPA/Sales | B42: ='Calculated Data'!B24/'Data Sheet'!B17 -> 0.02962276923 | C42: ='Calculated Data'!C24/'Data Sheet'!C17 -> 0.001056061452 | D42: ='Calculated Data'!D24/'Data Sheet'!D17 -> 0.02065275613 | E42: ='Calculated Data'!E24/'Data Sheet'!E17 -> 0.02023080912 | F42: ='Calculated Data'!F24/'Data Sheet'!F17 -> 0.002396772617 | G42: ='Calculated Data'!G24/'Data Sheet'!G17 -> 0.01663497611 | H42: ='Calculated Data'!H24/'Data Sheet'!H17 -> 0.02618582016 | I42: ='Calculated Data'!I24/'Data Sheet'!I17 -> -0.003770789034 | J42: ='Calculated Data'!J24/'Data Sheet'!J17 -> 0.03138277975 | K42: ='Calculated Data'!K24/'Data Sheet'!K17 -> 0.06175865063
A44: Sales/Invested Capital =Capital Turns | B44: ='Data Sheet'!B17/'Calculated Data'!B13 -> 2.472202166 | C44: ='Data Sheet'!C17/'Calculated Data'!C13 -> 2.250840619 | D44: ='Data Sheet'!D17/'Calculated Data'!D13 -> 2.053644315 | E44: ='Data Sheet'!E17/'Calculated Data'!E13 -> 1.779989523 | F44: ='Data Sheet'!F17/'Calculated Data'!F13 -> 1.906098742 | G44: ='Data Sheet'!G17/'Calculated Data'!G13 -> 2.156971771 | H44: ='Data Sheet'!H17/'Calculated Data'!H13 -> 2.056904401 | I44: ='Data Sheet'!I17/'Calculated Data'!I13 -> 1.773133376 | J44: ='Data Sheet'!J17/'Calculated Data'!J13 -> 2.016581248 | K44: ='Data Sheet'!K17/'Calculated Data'!K13 -> 1.622109276
A45: Sales/Fixed Assets= Fixed Asset Turns | B45: ='Data Sheet'!B17/'Data Sheet'!B62 -> 4.652173913 | C45: ='Data Sheet'!C17/'Data Sheet'!C62 -> 4.661559889 | D45: ='Data Sheet'!D17/'Data Sheet'!D62 -> 5.009957326 | E45: ='Data Sheet'!E17/'Data Sheet'!E62 -> 5.463022508 | F45: ='Data Sheet'!F17/'Data Sheet'!F62 -> 7.558541267 | G45: ='Data Sheet'!G17/'Data Sheet'!G62 -> 10.12650602 | H45: ='Data Sheet'!H17/'Data Sheet'!H62 -> 8.141141141 | I45: ='Data Sheet'!I17/'Data Sheet'!I62 -> 9.83539823 | J45: ='Data Sheet'!J17/'Data Sheet'!J62 -> 11.69405594 | K45: ='Data Sheet'!K17/'Data Sheet'!K62 -> 12.84305835
A46: Sales/Total Assets= Asset Turns | B46: ='Data Sheet'!B17/'Calculated Data'!B15 -> 1.934463277 | C46: ='Data Sheet'!C17/'Calculated Data'!C15 -> 1.792715587 | D46: ='Data Sheet'!D17/'Calculated Data'!D15 -> 1.687589842 | E46: ='Data Sheet'!E17/'Calculated Data'!E15 -> 1.483195111 | F46: ='Data Sheet'!F17/'Calculated Data'!F15 -> 1.632669983 | G46: ='Data Sheet'!G17/'Calculated Data'!G15 -> 1.805585392 | H46: ='Data Sheet'!H17/'Calculated Data'!H15 -> 1.740609952 | I46: ='Data Sheet'!I17/'Calculated Data'!I15 -> 1.54877369 | J46: ='Data Sheet'!J17/'Calculated Data'!J15 -> 1.744198175 | K46: ='Data Sheet'!K17/'Calculated Data'!K15 -> 1.384298417
A47: Net Margin*Asset Turns= RoA | B47: =B39*B46 -> 0.1468926554 | C47: =C39*C46 -> 0.09373326192 | D47: 0.1288931481 | E47: 0.124836316 | F47: 0.1028192371 | G47: 0.126745435 | H47: 0.1428571429 | I47: 0.09448160535 | J47: 0.15410691 | K47: 0.1841249187 | L47: Check back what is really driving RoA (Net Margins or Asset Turns, or both)
A48: Net Margin*Asset Turn*Fin Leverage= RoE | B48: =B39*B46*B19 -> 0.1895043732 | C48: 0.119128659 | D48: 0.1619506321 | E48: 0.1529411765 | F48: 0.1215090642 | G48: 0.1543829045 | H48: 0.168944571 | I48: 0.117058011 | J48: 0.1768402154 | K48: 0.2106177127 | L48: Check back what is really driving RoE (Net Margins, Asset Turns, or Financial Leverage)
A49: RoCE | B49: ='Calculated Data'!B5/'Calculated Data'!B14 -> 0.3039711191 | C49: ='Calculated Data'!C5/'Calculated Data'!C14 -> 0.1930060525 | D49: ='Calculated Data'!D5/'Calculated Data'!D14 -> 0.255393586 | E49: ='Calculated Data'!E5/'Calculated Data'!E14 -> 0.2111052907 | F49: ='Calculated Data'!F5/'Calculated Data'!F14 -> 0.1863504356 | G49: ='Calculated Data'!G5/'Calculated Data'!G14 -> 0.2386655261 | H49: ='Calculated Data'!H5/'Calculated Data'!H14 -> 0.2342836257 | I49: ='Calculated Data'!I5/'Calculated Data'!I14 -> 0.1669758813 | J49: ='Calculated Data'!J5/'Calculated Data'!J14 -> 0.2674860989 | K49: ='Calculated Data'!K5/'Calculated Data'!K14 -> 0.3296541575
A50: EBIT Margin*Cap Turns*(1-Tax rate)= RoIC | B50: =B36*B44*(1-'Calculated Data'!B20) -> 0.1932334743 | C50: =C36*C44*(1-'Calculated Data'!C20) -> 0.122377026 | D50: =D36*D44*(1-'Calculated Data'!D20) -> 0.1624134152 | E50: =E36*E44*(1-'Calculated Data'!E20) -> 0.1560106283 | F50: =F36*F44*(1-'Calculated Data'!F20) -> 0.1245684853 | G50: =G36*G44*(1-'Calculated Data'!G20) -> 0.1558811739 | H50: =H36*H44*(1-'Calculated Data'!H20) -> 0.1738617287 | I50: =I36*I44*(1-'Calculated Data'!I20) -> 0.1133138881 | J50: =J36*J44*(1-'Calculated Data'!J20) -> 0.1832859252 | K50: =K36*K44*(1-'Calculated Data'!K20) -> 0.22017928 | L50: Check back what is really driving RoIC (Op Margins or Capital Turns, or both)
A52: Altman Z-Score | B52: ='Calculated Data'!B43 -> 3.815424169 | C52: ='Calculated Data'!C43 -> 3.312068327 | D52: ='Calculated Data'!D43 -> 3.393205222 | E52: ='Calculated Data'!E43 -> 3.267696522 | F52: ='Calculated Data'!F43 -> 3.409686717 | G52: ='Calculated Data'!G43 -> 3.698168233 | H52: ='Calculated Data'!H43 -> 3.69816374 | I52: ='Calculated Data'!I43 -> 3.281168385 | J52: ='Calculated Data'!J43 -> 4.108461549 | K52: ='Calculated Data'!K43 -> 4.224163994
A53: Dividend Payout | B53: ='Data Sheet'!B31/'Data Sheet'!B30 -> 0.2538461538 | C53: ='Data Sheet'!C31/'Data Sheet'!C30 -> 0.3828571429 | D53: ='Data Sheet'!D31/'Data Sheet'!D30 -> 0.2453531599 | E53: ='Data Sheet'!E31/'Data Sheet'!E30 -> 0.2307692308 | F53: ='Data Sheet'!F31/'Data Sheet'!F30 -> 0.2661290323 | G53: ='Data Sheet'!G31/'Data Sheet'!G30 -> 0.2514124294 | H53: ='Data Sheet'!H31/'Data Sheet'!H30 -> 0.197752809 | I53: ='Data Sheet'!I31/'Data Sheet'!I30 -> 0.1946902655 | J53: ='Data Sheet'!J31/'Data Sheet'!J30 -> 0.1878172589 | K53: ='Data Sheet'!K31/'Data Sheet'!K30 -> 0.1566548881
A54: Cash/Assets | B54: ='Data Sheet'!B69/'Data Sheet'!B61 -> 0.1519774011 | C54: ='Data Sheet'!C69/'Data Sheet'!C61 -> 0.1821103374 | D54: ='Data Sheet'!D69/'Data Sheet'!D61 -> 0.2774317202 | E54: ='Data Sheet'!E69/'Data Sheet'!E61 -> 0.3443910956 | F54: ='Data Sheet'!F69/'Data Sheet'!F61 -> 0.3781094527 | G54: ='Data Sheet'!G69/'Data Sheet'!G61 -> 0.365556749 | H54: ='Data Sheet'!H69/'Data Sheet'!H61 -> 0.393258427 | I54: ='Data Sheet'!I69/'Data Sheet'!I61 -> 0.3876811594 | J54: ='Data Sheet'!J69/'Data Sheet'!J61 -> 0.4907431551 | K54: ='Data Sheet'!K69/'Data Sheet'!K61 -> 0.5992192583
A55: EBIT/Invested Capital | B55: ='Calculated Data'!B5/'Calculated Data'!B13 -> 0.3039711191 | C55: ='Calculated Data'!C5/'Calculated Data'!C13 -> 0.1930060525 | D55: ='Calculated Data'!D5/'Calculated Data'!D13 -> 0.255393586 | E55: ='Calculated Data'!E5/'Calculated Data'!E13 -> 0.2111052907 | F55: ='Calculated Data'!F5/'Calculated Data'!F13 -> 0.1863504356 | G55: ='Calculated Data'!G5/'Calculated Data'!G13 -> 0.2386655261 | H55: ='Calculated Data'!H5/'Calculated Data'!H13 -> 0.2431714719 | I55: ='Calculated Data'!I5/'Calculated Data'!I13 -> 0.1723037652 | J55: ='Calculated Data'!J5/'Calculated Data'!J13 -> 0.275550196 | K55: ='Calculated Data'!K5/'Calculated Data'!K13 -> 0.3415501906 | L55: Check back the significant role of EBIT/Invested Capital
A56: EPA | B56: ='Calculated Data'!B24 -> 1.014283619 | C56: ='Calculated Data'!C24 -> 0.03534637681 | D56: ='Calculated Data'!D24 -> 0.7273900709 | E56: ='Calculated Data'!E24 -> 0.6874428941 | F56: ='Calculated Data'!F24 -> 0.09438490566 | G56: ='Calculated Data'!G24 -> 0.838901845 | H56: ='Calculated Data'!H24 -> 1.419795169 | I56: ='Calculated Data'!I24 -> -0.2095427466 | J56: ='Calculated Data'!J24 -> 2.099194138 | K56: ='Calculated Data'!K24 -> 3.94205467 | L56: Check back what is really driving EPA (Invested Capital or RoIC, or both)
A57: MktCap | B57: ='Calculated Data'!B26 -> 14.84667966 | C57: ='Calculated Data'!C26 -> 13.59219277 | D57: ='Calculated Data'!D26 -> 10.26032164 | E57: ='Calculated Data'!E26 -> 15.09987885 | F57: ='Calculated Data'!F26 -> 15.13440601 | G57: ='Calculated Data'!G26 -> 17.66639789 | H57: ='Calculated Data'!H26 -> 18.64466748 | I57: ='Calculated Data'!I26 -> 16.14720276 | J57: ='Calculated Data'!J26 -> 34.74583403 | K57: ='Calculated Data'!K26 -> 58.85700291
A58: MktCap Change | C58: =C57-B57 -> -1.254486886 | D58: =D57-C57 -> -3.331871133 | E58: 4.839557207 | F58: 0.034527162 | G58: 2.53199188 | H58: 0.97826959 | I58: -2.497464718 | J58: 18.59863126 | K58: 24.11116889
A59: MktCap Change - EPA | C59: =C58-C56 -> -1.289833263 | D59: -4.059261204 | E59: 4.152114313 | F59: -0.05985774366 | G59: 1.693090035 | H59: -0.4415255791 | I59: -2.287921971 | J59: 16.49943713 | K59: 20.16911422
A61: Capex/Net Profits 10 yr | B61: =SUM('Calculated Data'!B$18:K$18)/SUM('Calculated Data'!B$8:K$8) -> 0.1553983229
A62: Capex/Net Profits 7 yr | B62: =SUM('Calculated Data'!E$18:K$18)/SUM('Calculated Data'!E$8:K$8) -> 0.1439588689
A63: Capex/Net Profits 5 yr | B63: =SUM('Calculated Data'!G$18:K$18)/SUM('Calculated Data'!G$8:K$8) -> 0.1702870442
A64: Capex/Net Profits 3 yr | B64: =SUM('Calculated Data'!I$18:K$18)/SUM('Calculated Data'!I$8:K$8) -> 0.05340078696
A65: Capex/Depreciation 10 yr | B65: =SUM('Calculated Data'!B$18:K$18)/SUM('Data Sheet'!B26:K26) -> 0.6459694989

Sheet Data Sheet
A1: COMPANY NAME | B1: ZENITH FIBRES LTD | E1: =IF(B2<>B3, "A NEW VERSION OF THE WORKSHEET IS AVAILABLE", "") -> 
A2: LATEST VERSION | B2: 2.1 | E2: PLEASE DO NOT MAKE ANY CHANGES TO THIS SHEET
A3: CURRENT VERSION | B3: 2.1
A5: META
A6: Number of shares | B6: =IF(B9>0, B9/B8, 0) -> 0.442261689
A7: Face Value | B7: 10
A8: Current Price | B8: 137.95
A9: Market Capitalization | B9: 61.01
A15: PROFIT & LOSS
A16: Report Date | B16: 2007-03-31 | C16: 2008-03-31 | D16: 2009-03-31 | E16: 2010-03-31 | F16: 2011-03-31 | G16: 2012-03-31 | H16: 2013-03-31 | I16: 2014-03-31 | J16: 2015-03-31 | K16: 2016-03-31
A17: Sales | B17: 34.24 | C17: 33.47 | D17: 35.22 | E17: 33.98 | F17: 39.38 | G17: 50.43 | H17: 54.22 | I17: 55.57 | J17: 66.89 | K17: 63.83
A18: Raw Material Cost | B18: 22.65 | C18: 22.26 | D18: 23.79 | E18: 21.58 | F18: 27.4 | G18: 33.47 | H18: 38.49 | I18: 39.57 | J18: 48.27 | K18: 40.97
A19: Change in Inventory | B19: 0.39 | C19: -0.25 | D19: 0.85 | E19: -0.54 | F19: 0.26 | G19: -0.53 | H19: 1.17 | I19: -0.4 | J19: 1.3 | K19: 2.08
A20: Power and Fuel | B20: 1.47 | C20: 1.47 | D20: 1.74 | E20: 1.63 | F20: 1.79 | G20: 2.06 | H20: 2.5 | I20: 2.47 | J20: 3.14 | K20: 3.18
A21: Other Mfr. Exp | B21: 2.7 | C21: 2.9 | D21: 2.66 | E21: 2.72 | F21: 2.82 | G21: 4.63 | H21: 1.27 | I21: 3.55 | J21: 4.03 | K21: 4.34
A22: Employee Cost | B22: 1.32 | C22: 1.5 | D22: 1.52 | E22: 1.59 | F22: 1.78 | G22: 1.9 | H22: 2.26 | I22: 2.46 | J22: 2.92 | K22: 3.17
A23: Selling and admin | B23: 1.22 | C23: 1.28 | D23: 1.21 | E23: 1.15 | F23: 1.27 | G23: 1.5 | H23: 4.19 | I23: 1.5 | J23: 1.7 | K23: 1.75
A24: Other Expenses | B24: 0.73 | C24: 0.68 | D24: 0.67 | E24: 0.77 | F24: 0.88 | G24: 1.18 | H24: 0.95 | I24: 1.01 | J24: 1.14 | K24: 1.3
A25: Other Income | B25: 0.52 | C25: 0.62 | D25: 0.81 | E25: 0.98 | F25: 1.1 | G25: 1.36 | H25: 1.75 | I25: 1.91 | J25: 2.95 | K25: 2.96
A26: Depreciation | B26: 0.85 | C26: 0.88 | D26: 0.91 | E26: 0.95 | F26: 0.95 | G26: 0.94 | H26: 1.06 | I26: 1.11 | J26: 0.81 | K26: 0.72
A27: Interest | B27: 0.12 | C27: 0.11 | D27: 0.15 | E27: 0.16 | F27: 0.14 | G27: 0.16 | H27: 0.2 | I27: 0.23 | J27: 0.27 | K27: 0.27
A28: Profit before tax | B28: 4.09 | C28: 2.76 | D28: 4.23 | E28: 3.87 | F28: 3.71 | G28: 5.42 | H28: 6.21 | I28: 5.17 | J28: 8.87 | K28: 13.17
A29: Tax | B29: 1.49 | C29: 1.01 | D29: 1.54 | E29: 1.01 | F29: 1.23 | G29: 1.88 | H29: 1.77 | I29: 1.77 | J29: 2.97 | K29: 4.68
A30: Net profit | B30: 2.6 | C30: 1.75 | D30: 2.69 | E30: 2.86 | F30: 2.48 | G30: 3.54 | H30: 4.45 | I30: 3.39 | J30: 5.91 | K30: 8.49
A31: Dividend Amount | B31: 0.66 | C31: 0.67 | D31: 0.66 | E31: 0.66 | F31: 0.66 | G31: 0.89 | H31: 0.88 | I31: 0.66 | J31: 1.11 | K31: 1.33
A40: Quarters
A41: Report Date | B41: 2014-06-30 | C41: 2014-09-30 | D41: 2014-12-31 | E41: 2015-03-31 | F41: 2015-06-30 | G41: 2015-09-30 | H41: 2015-12-31 | I41: 2016-03-31 | J41: 2016-06-30 | K41: 2016-09-30
A42: Sales | B42: 16.18 | C42: 17.26 | D42: 16.87 | E42: 16.59 | F42: 14.53 | G42: 18.45 | H42: 12.92 | I42: 17.93 | J42: 16.23 | K42: 10.61
A43: Expenses | B43: 14.76 | C43: 15.85 | D43: 14.82 | E43: 14.47 | F43: 12.77 | G43: 14.95 | H43: 10.31 | I43: 14.61 | J43: 13.11 | K43: 9.38
A44: Other Income | B44: 1.14 | C44: 0.6 | D44: 0.6 | E44: 0.62 | F44: 0.58 | G44: 0.91 | H44: 0.71 | I44: 0.77 | J44: 0.77 | K44: 0.65
A45: Depreciation | B45: 0.35 | C45: 0.13 | D45: 0.14 | E45: 0.2 | F45: 0.18 | G45: 0.18 | H45: 0.18 | I45: 0.18 | J45: 0.16 | K45: 0.16
A46: Interest | B46: 0.07 | C46: 0.04 | D46: 0.07 | E46: 0.08 | F46: 0.05 | G46: 0.06 | H46: 0.06 | I46: 0.09 | J46: 0.07 | K46: 0.1
A47: Profit before tax | B47: 2.15 | C47: 1.83 | D47: 2.43 | E47: 2.45 | F47: 2.11 | G47: 4.16 | H47: 3.08 | I47: 3.82 | J47: 3.66 | K47: 1.63
A48: Tax | B48: 0.7 | C48: 0.65 | D48: 0.79 | E48: 0.78 | F48: 0.73 | G48: 1.4 | H48: 1.2 | I48: 1.35 | J48: 1.32 | K48: 0.55
A49: Net profit | B49: 1.46 | C49: 1.18 | D49: 1.64 | E49: 1.68 | F49: 1.38 | G49: 2.76 | H49: 1.88 | I49: 2.47 | J49: 2.34 | K49: 1.08
A50: Operating Profit | B50: 1.42 | C50: 1.41 | D50: 2.05 | E50: 2.12 | F50: 1.76 | G50: 3.5 | H50: 2.61 | I50: 3.32 | J50: 3.12 | K50: 1.23
A55: BALANCE SHEET
A56: Report Date | B56: 2007-03-31 | C56: 2008-03-31 | D56: 2009-03-31 | E56: 2010-03-31 | F56: 2011-03-31 | G56: 2012-03-31 | H56: 2013-03-31 | I56: 2014-03-31 | J56: 2015-03-31 | K56: 2016-03-31
A57: Equity Share Capital | B57: 5.09 | C57: 5.09 | D57: 5.09 | E57: 5.09 | F57: 5.09 | G57: 5.09 | H57: 5.09 | I57: 5.09 | J57: 5.09 | K57: 4.42
A58: Reserves | B58: 8.63 | C58: 9.6 | D58: 11.52 | E58: 13.61 | F58: 15.32 | G58: 17.84 | H58: 21.25 | I58: 23.87 | J58: 28.33 | K58: 35.89
A59: Borrowings | B59: 0.13 | C59: 0.18 | D59: 0.54 | E59: 0.39 | F59: 0.25 | G59: 0.45 | H59: 1.02 | I59: 3.38 | J59: 0.75 | K59: 0.46
A60: Other Liabilities | B60: 3.85 | C60: 3.8 | D60: 3.72 | E60: 3.82 | F60: 3.46 | G60: 4.55 | H60: 3.79 | I60: 3.54 | J60: 4.18 | K60: 5.34
A61: Total | B61: 17.7 | C61: 18.67 | D61: 20.87 | E61: 22.91 | F61: 24.12 | G61: 27.93 | H61: 31.15 | I61: 35.88 | J61: 38.35 | K61: 46.11
A62: Net Block | B62: 7.36 | C62: 7.18 | D62: 7.03 | E62: 6.22 | F62: 5.21 | G62: 4.98 | H62: 6.66 | I62: 5.65 | J62: 5.72 | K62: 4.97
A63: Capital Work in Progress | B63: 0.01 | F63: 0.01 | G63: 1.62
A64: Investments | H64: 1 | I64: 1 | J64: 1 | K64: 1.42
A65: Other Assets | B65: 10.33 | C65: 11.49 | D65: 13.84 | E65: 16.69 | F65: 18.9 | G65: 21.33 | H65: 23.49 | I65: 29.23 | J65: 31.63 | K65: 39.72
A66: Total | B66: 17.7 | C66: 18.67 | D66: 20.87 | E66: 22.91 | F66: 24.12 | G66: 27.93 | H66: 31.15 | I66: 35.88 | J66: 38.35 | K66: 46.11
A67: Receivables | B67: 2.97 | C67: 2.8 | D67: 1.69 | E67: 4.03 | F67: 3.63 | G67: 5.18 | H67: 3.91 | I67: 7.46 | J67: 4.47 | K67: 3.87
A68: Inventory | B68: 2.41 | C68: 2.61 | D68: 3.6 | E68: 2.66 | F68: 3.29 | G68: 2.94 | H68: 4.47 | I68: 5.06 | J68: 4.85 | K68: 4.56
A69: Cash & Bank | B69: 2.69 | C69: 3.4 | D69: 5.79 | E69: 7.89 | F69: 9.12 | G69: 10.21 | H69: 12.25 | I69: 13.91 | J69: 18.82 | K69: 27.63
A70: No. of Equity Shares | B70: 5754527 | C70: 5754527 | D70: 5754527 | E70: 5754527 | F70: 5754527 | G70: 5754527 | H70: 5754527 | I70: 5754527 | J70: 5754527 | K70: 4422346
A71: New Bonus Shares
A72: Face value | B72: 10 | C72: 10 | D72: 10 | E72: 10 | F72: 10 | G72: 10 | H72: 10 | I72: 10 | J72: 10 | K72: 10
A80: CASH FLOW:
A81: Report Date | B81: 2007-03-31 | C81: 2008-03-31 | D81: 2009-03-31 | E81: 2010-03-31 | F81: 2011-03-31 | G81: 2012-03-31 | H81: 2013-03-31 | I81: 2014-03-31 | J81: 2015-03-31 | K81: 2016-03-31
A82: Cash from Operating Activity | B82: 0.39 | C82: 1.72 | D82: 3.27 | E82: 2.44 | F82: 1.57 | G82: 2.92 | H82: 3.39 | I82: -0.8 | J82: 7.62 | K82: 8.96
A83: Cash from Investing Activity | B83: -0.23 | C83: -0.26 | D83: -0.42 | E83: 0.59 | F83: 0.61 | G83: -1.39 | H83: -0.81 | I83: 1.21 | J83: 0.78 | K83: 1.54
A84: Cash from Financing Activity | B84: -0.03 | C84: -0.76 | D84: -0.45 | E84: -0.93 | F84: -0.95 | G84: -0.59 | H84: -0.54 | I84: 1.25 | J84: -3.49 | K84: -1.68
A85: Net Cash Flow | B85: 0.13 | C85: 0.7 | D85: 2.4 | E85: 2.1 | F85: 1.23 | G85: 0.94 | H85: 2.04 | I85: 1.66 | J85: 4.91 | K85: 8.82
A90: PRICE: | B90: 25.8 | C90: 23.62 | D90: 17.83 | E90: 26.24 | F90: 26.3 | G90: 30.7 | H90: 32.4 | I90: 28.06 | J90: 60.38 | K90: 133.09
A92: DERIVED:
A93: Adjusted Equity Shares in Cr | B93: =IF($B7>0,(B70*B72/$B7)+SUM(C71:$K71),0)/10000000 -> 0.5754527 | C93: =IF($B7>0,(C70*C72/$B7)+SUM(D71:$K71),0)/10000000 -> 0.5754527 | D93: =IF($B7>0,(D70*D72/$B7)+SUM(E71:$K71),0)/10000000 -> 0.5754527 | E93: =IF($B7>0,(E70*E72/$B7)+SUM(F71:$K71),0)/10000000 -> 0.5754527 | F93: =IF($B7>0,(F70*F72/$B7)+SUM(G71:$K71),0)/10000000 -> 0.5754527 | G93: =IF($B7>0,(G70*G72/$B7)+SUM(H71:$K71),0)/10000000 -> 0.5754527 | H93: =IF($B7>0,(H70*H72/$B7)+SUM(I71:$K71),0)/10000000 -> 0.5754527 | I93: =IF($B7>0,(I70*I72/$B7)+SUM(J71:$K71),0)/10000000 -> 0.5754527 | J93: =IF($B7>0,(J70*J72/$B7)+SUM(K71:$K71),0)/10000000 -> 0.5754527 | K93: =IF($B7>0,(K70*K72/$B7),0)/10000000 -> 0.4422346

Sheet Calculated Data
A1: ='Data Sheet'!B1 -> ZENITH FIBRES LTD
A3: =A1 -> ZENITH FIBRES LTD | B3: ='Data Sheet'!B16 -> 2007-03-31 | C3: ='Data Sheet'!C16 -> 2008-03-31 | D3: ='Data Sheet'!D16 -> 2009-03-31 | E3: ='Data Sheet'!E16 -> 2010-03-31 | F3: ='Data Sheet'!F16 -> 2011-03-31 | G3: ='Data Sheet'!G16 -> 2012-03-31 | H3: ='Data Sheet'!H16 -> 2013-03-31 | I3: ='Data Sheet'!I16 -> 2014-03-31 | J3: ='Data Sheet'!J16 -> 2015-03-31 | K3: ='Data Sheet'!K16 -> 2016-03-31
A4: Gross Profit | B4: ='Data Sheet'!B17-'Data Sheet'!B18 -> 11.59 | C4: ='Data Sheet'!C17-'Data Sheet'!C18 -> 11.21 | D4: ='Data Sheet'!D17-'Data Sheet'!D18 -> 11.43 | E4: ='Data Sheet'!E17-'Data Sheet'!E18 -> 12.4 | F4: ='Data Sheet'!F17-'Data Sheet'!F18 -> 11.98 | G4: ='Data Sheet'!G17-'Data Sheet'!G18 -> 16.96 | H4: ='Data Sheet'!H17-'Data Sheet'!H18 -> 15.73 | I4: ='Data Sheet'!I17-'Data Sheet'!I18 -> 16 | J4: ='Data Sheet'!J17-'Data Sheet'!J18 -> 18.62 | K4: ='Data Sheet'!K17-'Data Sheet'!K18 -> 22.86
A5: EBIT | B5: ='Data Sheet'!B28+'Data Sheet'!B27 -> 4.21 | C5: ='Data Sheet'!C28+'Data Sheet'!C27 -> 2.87 | D5: ='Data Sheet'!D28+'Data Sheet'!D27 -> 4.38 | E5: ='Data Sheet'!E28+'Data Sheet'!E27 -> 4.03 | F5: ='Data Sheet'!F28+'Data Sheet'!F27 -> 3.85 | G5: ='Data Sheet'!G28+'Data Sheet'!G27 -> 5.58 | H5: ='Data Sheet'!H28+'Data Sheet'!H27 -> 6.41 | I5: ='Data Sheet'!I28+'Data Sheet'!I27 -> 5.4 | J5: ='Data Sheet'!J28+'Data Sheet'!J27 -> 9.14 | K5: ='Data Sheet'!K28+'Data Sheet'!K27 -> 13.44
A6: EBITDA | B6: ='Calculated Data'!B5+'Data Sheet'!B26 -> 5.06 | C6: ='Calculated Data'!C5+'Data Sheet'!C26 -> 3.75 | D6: ='Calculated Data'!D5+'Data Sheet'!D26 -> 5.29 | E6: ='Calculated Data'!E5+'Data Sheet'!E26 -> 4.98 | F6: ='Calculated Data'!F5+'Data Sheet'!F26 -> 4.8 | G6: ='Calculated Data'!G5+'Data Sheet'!G26 -> 6.52 | H6: ='Calculated Data'!H5+'Data Sheet'!H26 -> 7.47 | I6: ='Calculated Data'!I5+'Data Sheet'!I26 -> 6.51 | J6: ='Calculated Data'!J5+'Data Sheet'!J26 -> 9.95 | K6: ='Calculated Data'!K5+'Data Sheet'!K26 -> 14.16
A7: Operating Profit (excl Other Income) | B7: =B6-'Data Sheet'!B25 -> 4.54 | C7: =C6-'Data Sheet'!C25 -> 3.13 | D7: =D6-'Data Sheet'!D25 -> 4.48 | E7: =E6-'Data Sheet'!E25 -> 4 | F7: =F6-'Data Sheet'!F25 -> 3.7 | G7: =G6-'Data Sheet'!G25 -> 5.16 | H7: =H6-'Data Sheet'!H25 -> 5.72 | I7: =I6-'Data Sheet'!I25 -> 4.6 | J7: =J6-'Data Sheet'!J25 -> 7 | K7: =K6-'Data Sheet'!K25 -> 11.2
A8: PAT | B8: ='Data Sheet'!B30 -> 2.6 | C8: ='Data Sheet'!C30 -> 1.75 | D8: ='Data Sheet'!D30 -> 2.69 | E8: ='Data Sheet'!E30 -> 2.86 | F8: ='Data Sheet'!F30 -> 2.48 | G8: ='Data Sheet'!G30 -> 3.54 | H8: ='Data Sheet'!H30 -> 4.45 | I8: ='Data Sheet'!I30 -> 3.39 | J8: ='Data Sheet'!J30 -> 5.91 | K8: ='Data Sheet'!K30 -> 8.49
A9: Dividend | B9: ='Data Sheet'!B31 -> 0.66 | C9: ='Data Sheet'!C31 -> 0.67 | D9: ='Data Sheet'!D31 -> 0.66 | E9: ='Data Sheet'!E31 -> 0.66 | F9: ='Data Sheet'!F31 -> 0.66 | G9: ='Data Sheet'!G31 -> 0.89 | H9: ='Data Sheet'!H31 -> 0.88 | I9: ='Data Sheet'!I31 -> 0.66 | J9: ='Data Sheet'!J31 -> 1.11 | K9: ='Data Sheet'!K31 -> 1.33
B10: =B3 -> 2007-03-31 | C10: =C3 -> 2008-03-31 | D10: 2009-03-31 | E10: 2010-03-31 | F10: 2011-03-31 | G10: 2012-03-31 | H10: 2013-03-31 | I10: 2014-03-31 | J10: 2015-03-31 | K10: 2016-03-31
A11: Networth | B11: ='Data Sheet'!B57+'Data Sheet'!B58 -> 13.72 | C11: ='Data Sheet'!C57+'Data Sheet'!C58 -> 14.69 | D11: ='Data Sheet'!D57+'Data Sheet'!D58 -> 16.61 | E11: ='Data Sheet'!E57+'Data Sheet'!E58 -> 18.7 | F11: ='Data Sheet'!F57+'Data Sheet'!F58 -> 20.41 | G11: ='Data Sheet'!G57+'Data Sheet'!G58 -> 22.93 | H11: ='Data Sheet'!H57+'Data Sheet'!H58 -> 26.34 | I11: ='Data Sheet'!I57+'Data Sheet'!I58 -> 28.96 | J11: ='Data Sheet'!J57+'Data Sheet'!J58 -> 33.42 | K11: ='Data Sheet'!K57+'Data Sheet'!K58 -> 40.31
A12: Working Capital | B12: ='Data Sheet'!B65-'Data Sheet'!B60 -> 6.48 | C12: ='Data Sheet'!C65-'Data Sheet'!C60 -> 7.69 | D12: ='Data Sheet'!D65-'Data Sheet'!D60 -> 10.12 | E12: ='Data Sheet'!E65-'Data Sheet'!E60 -> 12.87 | F12: ='Data Sheet'!F65-'Data Sheet'!F60 -> 15.44 | G12: ='Data Sheet'!G65-'Data Sheet'!G60 -> 16.78 | H12: ='Data Sheet'!H65-'Data Sheet'!H60 -> 19.7 | I12: ='Data Sheet'!I65-'Data Sheet'!I60 -> 25.69 | J12: ='Data Sheet'!J65-'Data Sheet'!J60 -> 27.45 | K12: ='Data Sheet'!K65-'Data Sheet'!K60 -> 34.38
A13: Invested Capital | B13: ='Data Sheet'!B62+'Data Sheet'!B63+'Calculated Data'!B12 -> 13.85 | C13: ='Data Sheet'!C62+'Data Sheet'!C63+'Calculated Data'!C12 -> 14.87 | D13: ='Data Sheet'!D62+'Data Sheet'!D63+'Calculated Data'!D12 -> 17.15 | E13: ='Data Sheet'!E62+'Data Sheet'!E63+'Calculated Data'!E12 -> 19.09 | F13: ='Data Sheet'!F62+'Data Sheet'!F63+'Calculated Data'!F12 -> 20.66 | G13: ='Data Sheet'!G62+'Data Sheet'!G63+'Calculated Data'!G12 -> 23.38 | H13: ='Data Sheet'!H62+'Data Sheet'!H63+'Calculated Data'!H12 -> 26.36 | I13: ='Data Sheet'!I62+'Data Sheet'!I63+'Calculated Data'!I12 -> 31.34 | J13: ='Data Sheet'!J62+'Data Sheet'!J63+'Calculated Data'!J12 -> 33.17 | K13: ='Data Sheet'!K62+'Data Sheet'!K63+'Calculated Data'!K12 -> 39.35
A14: Capital Employed | B14: =B11+'Data Sheet'!B59 -> 13.85 | C14: =C11+'Data Sheet'!C59 -> 14.87 | D14: =D11+'Data Sheet'!D59 -> 17.15 | E14: =E11+'Data Sheet'!E59 -> 19.09 | F14: =F11+'Data Sheet'!F59 -> 20.66 | G14: =G11+'Data Sheet'!G59 -> 23.38 | H14: =H11+'Data Sheet'!H59 -> 27.36 | I14: =I11+'Data Sheet'!I59 -> 32.34 | J14: =J11+'Data Sheet'!J59 -> 34.17 | K14: =K11+'Data Sheet'!K59 -> 40.77
A15: Total Assets | B15: ='Data Sheet'!B61 -> 17.7 | C15: ='Data Sheet'!C61 -> 18.67 | D15: ='Data Sheet'!D61 -> 20.87 | E15: ='Data Sheet'!E61 -> 22.91 | F15: ='Data Sheet'!F61 -> 24.12 | G15: ='Data Sheet'!G61 -> 27.93 | H15: ='Data Sheet'!H61 -> 31.15 | I15: ='Data Sheet'!I61 -> 35.88 | J15: ='Data Sheet'!J61 -> 38.35 | K15: ='Data Sheet'!K61 -> 46.11
B16: =B3 -> 2007-03-31 | C16: =C3 -> 2008-03-31 | D16: 2009-03-31 | E16: 2010-03-31 | F16: 2011-03-31 | G16: 2012-03-31 | H16: 2013-03-31 | I16: 2014-03-31 | J16: 2015-03-31 | K16: 2016-03-31
A17: Operating Cash Flow | B17: ='Data Sheet'!B82 -> 0.39 | C17: ='Data Sheet'!C82 -> 1.72 | D17: ='Data Sheet'!D82 -> 3.27 | E17: ='Data Sheet'!E82 -> 2.44 | F17: ='Data Sheet'!F82 -> 1.57 | G17: ='Data Sheet'!G82 -> 2.92 | H17: ='Data Sheet'!H82 -> 3.39 | I17: ='Data Sheet'!I82 -> -0.8 | J17: ='Data Sheet'!J82 -> 7.62 | K17: ='Data Sheet'!K82 -> 8.96
A18: Capex | C18: =('Data Sheet'!C62-'Data Sheet'!B62)+('Data Sheet'!C63-'Data Sheet'!B63)+'Data Sheet'!C26 -> 0.69 | D18: =('Data Sheet'!D62-'Data Sheet'!C62)+('Data Sheet'!D63-'Data Sheet'!C63)+'Data Sheet'!D26 -> 0.76 | E18: =('Data Sheet'!E62-'Data Sheet'!D62)+('Data Sheet'!E63-'Data Sheet'!D63)+'Data Sheet'!E26 -> 0.14 | F18: =('Data Sheet'!F62-'Data Sheet'!E62)+('Data Sheet'!F63-'Data Sheet'!E63)+'Data Sheet'!F26 -> -0.05 | G18: =('Data Sheet'!G62-'Data Sheet'!F62)+('Data Sheet'!G63-'Data Sheet'!F63)+'Data Sheet'!G26 -> 2.32 | H18: =('Data Sheet'!H62-'Data Sheet'!G62)+('Data Sheet'!H63-'Data Sheet'!G63)+'Data Sheet'!H26 -> 1.12 | I18: =('Data Sheet'!I62-'Data Sheet'!H62)+('Data Sheet'!I63-'Data Sheet'!H63)+'Data Sheet'!I26 -> 0.1 | J18: =('Data Sheet'!J62-'Data Sheet'!I62)+('Data Sheet'!J63-'Data Sheet'!I63)+'Data Sheet'!J26 -> 0.88 | K18: =('Data Sheet'!K62-'Data Sheet'!J62)+('Data Sheet'!K63-'Data Sheet'!J63)+'Data Sheet'!K26 -> -0.03 | L18: CHECK? | M18: derived from BS
A19: Free Cash Flow | C19: =C17-C18 -> 1.03 | D19: =D17-D18 -> 2.51 | E19: 2.3 | F19: 1.62 | G19: 0.6 | H19: 2.27 | I19: -0.9 | J19: 6.74 | K19: 8.99
A20: Tax Rate | B20: ='Data Sheet'!B29/'Data Sheet'!B28 -> 0.3643031785 | C20: ='Data Sheet'!C29/'Data Sheet'!C28 -> 0.365942029 | D20: ='Data Sheet'!D29/'Data Sheet'!D28 -> 0.3640661939 | E20: ='Data Sheet'!E29/'Data Sheet'!E28 -> 0.2609819121 | F20: ='Data Sheet'!F29/'Data Sheet'!F28 -> 0.3315363881 | G20: ='Data Sheet'!G29/'Data Sheet'!G28 -> 0.3468634686 | H20: ='Data Sheet'!H29/'Data Sheet'!H28 -> 0.2850241546 | I20: ='Data Sheet'!I29/'Data Sheet'!I28 -> 0.3423597679 | J20: ='Data Sheet'!J29/'Data Sheet'!J28 -> 0.3348365276 | K20: ='Data Sheet'!K29/'Data Sheet'!K28 -> 0.3553530752
A21: NOPLAT | B21: =B5*(1-B20) -> 2.676283619 | C21: 1.819746377 | D21: 2.785390071 | E21: 2.978242894 | F21: 2.573584906 | G21: 3.644501845 | H21: 4.582995169 | I21: 3.551257253 | J21: 6.079594138 | K21: 8.66405467
A22: RoIC | B22: =(B5/B13)*(1-B20) -> 0.1932334743 | C22: =(C5/C13)*(1-C20) -> 0.122377026 | D22: 0.1624134152 | E22: 0.1560106283 | F22: 0.1245684853 | G22: 0.1558811739 | H22: 0.1738617287 | I22: 0.1133138881 | J22: 0.1832859252 | K22: 0.22017928
A23: WACC | B23: 0.12 | C23: 0.12 | D23: 0.12 | E23: 0.12 | F23: 0.12 | G23: 0.12 | H23: 0.12 | I23: 0.12 | J23: 0.12 | K23: 0.12
A24: EPA (Economic Profit Added) | B24: =B13*(B22-B23) -> 1.014283619 | C24: =C13*(C22-C23) -> 0.03534637681 | D24: 0.7273900709 | E24: 0.6874428941 | F24: 0.09438490566 | G24: 0.838901845 | H24: 1.419795169 | I24: -0.2095427466 | J24: 2.099194138 | K24: 3.94205467
B25: =B3 -> 2007-03-31 | C25: =C3 -> 2008-03-31 | D25: 2009-03-31 | E25: 2010-03-31 | F25: 2011-03-31 | G25: 2012-03-31 | H25: 2013-03-31 | I25: 2014-03-31 | J25: 2015-03-31 | K25: 2016-03-31 | L25: CURRENT
A26: MktCap | B26: ='Data Sheet'!B90*'Data Sheet'!B93 -> 14.84667966 | C26: ='Data Sheet'!C90*'Data Sheet'!C93 -> 13.59219277 | D26: ='Data Sheet'!D90*'Data Sheet'!D93 -> 10.26032164 | E26: ='Data Sheet'!E90*'Data Sheet'!E93 -> 15.09987885 | F26: ='Data Sheet'!F90*'Data Sheet'!F93 -> 15.13440601 | G26: ='Data Sheet'!G90*'Data Sheet'!G93 -> 17.66639789 | H26: ='Data Sheet'!H90*'Data Sheet'!H93 -> 18.64466748 | I26: ='Data Sheet'!I90*'Data Sheet'!I93 -> 16.14720276 | J26: ='Data Sheet'!J90*'Data Sheet'!J93 -> 34.74583403 | K26: ='Data Sheet'!K90*'Data Sheet'!K93 -> 58.85700291 | L26: ='Data Sheet'!B9 -> 61.01
A27: MktCap+Dividend | B27: =B26+'Data Sheet'!B31 -> 15.50667966 | C27: =C26+'Data Sheet'!C31 -> 14.26219277 | D27: =D26+'Data Sheet'!D31 -> 10.92032164 | E27: =E26+'Data Sheet'!E31 -> 15.75987885 | F27: =F26+'Data Sheet'!F31 -> 15.79440601 | G27: =G26+'Data Sheet'!G31 -> 18.55639789 | H27: =H26+'Data Sheet'!H31 -> 19.52466748 | I27: =I26+'Data Sheet'!I31 -> 16.80720276 | J27: =J26+'Data Sheet'!J31 -> 35.85583403 | K27: =K26+'Data Sheet'!K31 -> 60.18700291
A28: Retained Profit | B28: ='Data Sheet'!B30-'Data Sheet'!B31 -> 1.94 | C28: ='Data Sheet'!C30-'Data Sheet'!C31 -> 1.08 | D28: ='Data Sheet'!D30-'Data Sheet'!D31 -> 2.03 | E28: ='Data Sheet'!E30-'Data Sheet'!E31 -> 2.2 | F28: ='Data Sheet'!F30-'Data Sheet'!F31 -> 1.82 | G28: ='Data Sheet'!G30-'Data Sheet'!G31 -> 2.65 | H28: ='Data Sheet'!H30-'Data Sheet'!H31 -> 3.57 | I28: ='Data Sheet'!I30-'Data Sheet'!I31 -> 2.73 | J28: ='Data Sheet'!J30-'Data Sheet'!J31 -> 4.8 | K28: ='Data Sheet'!K30-'Data Sheet'!K31 -> 7.16
A29: EV | B29: =B26+'Data Sheet'!B59-'Data Sheet'!B69 -> 12.28667966 | C29: =C26+'Data Sheet'!C59-'Data Sheet'!C69 -> 10.37219277 | D29: =D26+'Data Sheet'!D59-'Data Sheet'!D69 -> 5.010321641 | E29: =E26+'Data Sheet'!E59-'Data Sheet'!E69 -> 7.599878848 | F29: =F26+'Data Sheet'!F59-'Data Sheet'!F69 -> 6.26440601 | G29: =G26+'Data Sheet'!G59-'Data Sheet'!G69 -> 7.90639789 | H29: =H26+'Data Sheet'!H59-'Data Sheet'!H69 -> 7.41466748 | I29: =I26+'Data Sheet'!I59-'Data Sheet'!I69 -> 5.617202762 | J29: =J26+'Data Sheet'!J59-'Data Sheet'!J69 -> 16.67583403 | K29: =K26+'Data Sheet'!K59-'Data Sheet'!K69 -> 31.68700291
B30: =B3 -> 2007-03-31 | C30: =C3 -> 2008-03-31 | D30: 2009-03-31 | E30: 2010-03-31 | F30: 2011-03-31 | G30: 2012-03-31 | H30: 2013-03-31 | I30: 2014-03-31 | J30: 2015-03-31 | K30: 2016-03-31
A31: Price/Earnings | B31: =B26/'Data Sheet'!B30 -> 5.710261408 | C31: =C26/'Data Sheet'!C30 -> 7.766967299 | D31: =D26/'Data Sheet'!D30 -> 3.814245963 | E31: =E26/'Data Sheet'!E30 -> 5.279677919 | F31: =F26/'Data Sheet'!F30 -> 6.102583069 | G31: =G26/'Data Sheet'!G30 -> 4.990507879 | H31: =H26/'Data Sheet'!H30 -> 4.189812917 | I31: =I26/'Data Sheet'!I30 -> 4.763186655 | J31: =J26/'Data Sheet'!J30 -> 5.879159734 | K31: =K26/'Data Sheet'!K30 -> 6.932509177
A32: Price/Book | B32: =B26/B11 -> 1.082119509 | C32: 0.9252683985 | D32: 0.6177195449 | E32: 0.8074801523 | F32: 0.7415191578 | G32: 0.7704491012 | H32: 0.7078461458 | I32: 0.5575691561 | J32: 1.039671874 | K32: 1.460109226
A33: Price/CashFlow | B33: =B26/B17 -> 38.06840938 | C33: 7.902437659 | D33: 3.13771304 | E33: 6.188474938 | F33: 9.639749051 | G33: 6.050136264 | H33: 5.499901912 | I33: -20.18400345 | J33: 4.559820738 | K33: 6.568861932
A34: Price/Sales | B34: =B26/'Data Sheet'!B17 -> 0.4336062985 | C34: =C26/'Data Sheet'!C17 -> 0.4061007701 | D34: =D26/'Data Sheet'!D17 -> 0.291320887 | E34: =E26/'Data Sheet'!E17 -> 0.4443754811 | F34: =F26/'Data Sheet'!F17 -> 0.3843170648 | G34: =G26/'Data Sheet'!G17 -> 0.3503152467 | H34: =H26/'Data Sheet'!H17 -> 0.3438706654 | I34: =I26/'Data Sheet'!I17 -> 0.2905741004 | J34: =J26/'Data Sheet'!J17 -> 0.5194473617 | K34: =K26/'Data Sheet'!K17 -> 0.922089972
A35: EV/EBITDA | B35: =B29/B6 -> 2.428197561 | C35: 2.765918073 | D35: 0.947130745 | E35: 1.52608009 | F35: 1.305084585 | G35: 1.212637713 | H35: 0.9925927015 | I35: 0.8628575671 | J35: 1.675963219 | K35: 2.237782692
A36: Dividend Yield | B36: ='Data Sheet'!B31/'Calculated Data'!B26 -> 0.04445438409 | C36: ='Data Sheet'!C31/'Calculated Data'!C26 -> 0.04929300306 | D36: ='Data Sheet'!D31/'Calculated Data'!D26 -> 0.06432546884 | E36: ='Data Sheet'!E31/'Calculated Data'!E26 -> 0.04370895996 | F36: ='Data Sheet'!F31/'Calculated Data'!F26 -> 0.0436092437 | G36: ='Data Sheet'!G31/'Calculated Data'!G26 -> 0.05037812493 | H36: ='Data Sheet'!H31/'Calculated Data'!H26 -> 0.04719848187 | I36: ='Data Sheet'!I31/'Calculated Data'!I26 -> 0.04087395258 | J36: ='Data Sheet'!J31/'Calculated Data'!J26 -> 0.0319462759 | K36: ='Data Sheet'!K31/'Calculated Data'!K26 -> 0.02259714111
B37: =B3 -> 2007-03-31 | C37: =C3 -> 2008-03-31 | D37: 2009-03-31 | E37: 2010-03-31 | F37: 2011-03-31 | G37: 2012-03-31 | H37: 2013-03-31 | I37: 2014-03-31 | J37: 2015-03-31 | K37: 2016-03-31 | L37: Z-Weights
A38: Working Capital/Total Assets | B38: =B12/B15 -> 0.3661016949 | C38: 0.4118907338 | D38: 0.4849065644 | E38: 0.5617634221 | F38: 0.64013267 | G38: 0.6007876835 | H38: 0.632423756 | I38: 0.7159977703 | J38: 0.7157757497 | K38: 0.7456083279 | L38: 1.2
A39: Retained Profits/Total Assets | B39: =B28/B15 -> 0.1096045198 | C39: 0.05784681307 | D39: 0.0972688069 | E39: 0.0960279354 | F39: 0.07545605307 | G39: 0.09488005729 | H39: 0.1146067416 | I39: 0.07608695652 | J39: 0.1251629726 | K39: 0.1552808501 | L39: 1.4
A40: EBIT/Total Assets | B40: =B5/B15 -> 0.2378531073 | C40: 0.1537225495 | D40: 0.2098706277 | E40: 0.175905718 | F40: 0.1596185738 | G40: 0.1997851772 | H40: 0.2057784912 | I40: 0.1505016722 | J40: 0.2383311604 | K40: 0.2914769031 | L40: 3.3
A41: Market Cap/Total Liabilities | B41: =B26/B15 -> 0.838795461 | C41: =C26/C15 -> 0.7280231802 | D41: 0.4916301697 | E41: 0.6590955412 | F41: 0.6274629357 | G41: 0.632524092 | H41: 0.5985447024 | I41: 0.4500335218 | J41: 0.9060191402 | K41: 1.276447688 | L41: 0.6
A42: Sales/Total Assets | B42: ='Data Sheet'!B17/'Calculated Data'!B15 -> 1.934463277 | C42: ='Data Sheet'!C17/'Calculated Data'!C15 -> 1.792715587 | D42: ='Data Sheet'!D17/'Calculated Data'!D15 -> 1.687589842 | E42: ='Data Sheet'!E17/'Calculated Data'!E15 -> 1.483195111 | F42: ='Data Sheet'!F17/'Calculated Data'!F15 -> 1.632669983 | G42: ='Data Sheet'!G17/'Calculated Data'!G15 -> 1.805585392 | H42: ='Data Sheet'!H17/'Calculated Data'!H15 -> 1.740609952 | I42: ='Data Sheet'!I17/'Calculated Data'!I15 -> 1.54877369 | J42: ='Data Sheet'!J17/'Calculated Data'!J15 -> 1.744198175 | K42: ='Data Sheet'!K17/'Calculated Data'!K15 -> 1.384298417 | L42: 1
A43: Altman Z-Score | B43: =$L$38*B38+$L$39*B39+$L$40*B40+$L$41*B41+$L$42*B42 -> 3.815424169 | C43: =$L$38*C38+$L$39*C39+$L$40*C40+$L$41*C41+$L$42*C42 -> 3.312068327 | D43: 3.393205222 | E43: 3.267696522 | F43: 3.409686717 | G43: 3.698168233 | H43: 3.69816374 | I43: 3.281168385 | J43: 4.108461549 | K43: 4.224163994
A44: Z > 2.99 -“Safe” Zones
A45: 1.81 < Z < 2.99 -“Grey” Zones
A46: Z < 1.81 -“Distress” Zones

Sheet Sheet1
